Department family,Entity,Date,Expense Type,Expense area,Supplier,Transaction number,AP Amount (�)
Department of Health,NHS Sheffield CCG,30/11/2018,C&M-PMS Contract Value,PRC DELEGATED CO-COMMISSIONING,ABBEY LANE SURGERY,24668541,"23,852.21 "
Department of Health,NHS Sheffield CCG,30/11/2018,C&M-PMS DES Minor Surgery,PRC DELEGATED CO-COMMISSIONING,ABBEY LANE SURGERY,24668541,665.00 
Department of Health,NHS Sheffield CCG,30/11/2018,C&M-PMS Prem Notional Rent,PRC DELEGATED CO-COMMISSIONING,ABBEY LANE SURGERY,24668541,"2,122.92 "
Department of Health,NHS Sheffield CCG,30/11/2018,C&M-PMS Prem Rates,PRC DELEGATED CO-COMMISSIONING,ABBEY LANE SURGERY,24668541,744.00 
Department of Health,NHS Sheffield CCG,30/11/2018,C&M-PMS QOF Aspiration,PRC DELEGATED CO-COMMISSIONING,ABBEY LANE SURGERY,24668541,"2,572.92 "
Department of Health,NHS Sheffield CCG,30/11/2018,Cont Care-Physical Disab (65+),CHC ADULT FULLY FUNDED,ABBEYCARE NURSING,24615932,"49,631.40 "
Department of Health,NHS Sheffield CCG,30/11/2018,C&M-PMS Contract Value,PRC DELEGATED CO-COMMISSIONING,AVENUE MEDICAL CENTRE SHEFFIELD,24668539,"55,396.68 "
Department of Health,NHS Sheffield CCG,30/11/2018,C&M-PMS DES Minor Surgery,PRC DELEGATED CO-COMMISSIONING,AVENUE MEDICAL CENTRE SHEFFIELD,24668539,360.00 
Department of Health,NHS Sheffield CCG,30/11/2018,C&M-PMS Out of Hours Opt Outs,PRC DELEGATED CO-COMMISSIONING,AVENUE MEDICAL CENTRE SHEFFIELD,24668539,3.86 
Department of Health,NHS Sheffield CCG,30/11/2018,C&M-PMS PCO Other,PRC DELEGATED CO-COMMISSIONING,AVENUE MEDICAL CENTRE SHEFFIELD,24668539,511.39 
Department of Health,NHS Sheffield CCG,30/11/2018,C&M-PMS Prem Notional Rent,PRC DELEGATED CO-COMMISSIONING,AVENUE MEDICAL CENTRE SHEFFIELD,24668539,"5,546.67 "
Department of Health,NHS Sheffield CCG,30/11/2018,C&M-PMS Prem Rates,PRC DELEGATED CO-COMMISSIONING,AVENUE MEDICAL CENTRE SHEFFIELD,24668539,"1,002.00 "
Department of Health,NHS Sheffield CCG,30/11/2018,C&M-PMS QOF Aspiration,PRC DELEGATED CO-COMMISSIONING,AVENUE MEDICAL CENTRE SHEFFIELD,24668539,"5,705.45 "
Department of Health,NHS Sheffield CCG,30/11/2018,Other Gen Supplies & Srv,CLINICAL LEADS,BARNSLEY HOSPITAL NHS FOUNDATION TRUST,24578162,"100,000.00 "
Department of Health,NHS Sheffield CCG,30/11/2018,Hcare Srv Rec Fdtn Trust-Contract Baseline,ACUTE COMMISSIONING,BARNSLEY HOSPITAL NHS FOUNDATION TRUST,24615649,"73,344.00 "
Department of Health,NHS Sheffield CCG,30/11/2018,C&M-PMS Contract Value,PRC DELEGATED CO-COMMISSIONING,BARNSLEY ROAD SURGERY,24668543,"21,763.76 "
Department of Health,NHS Sheffield CCG,30/11/2018,C&M-PMS Prem Notional Rent,PRC DELEGATED CO-COMMISSIONING,BARNSLEY ROAD SURGERY,24668543,"2,652.17 "
Department of Health,NHS Sheffield CCG,30/11/2018,C&M-PMS QOF Aspiration,PRC DELEGATED CO-COMMISSIONING,BARNSLEY ROAD SURGERY,24668543,"2,364.70 "
Department of Health,NHS Sheffield CCG,30/11/2018,C&M-GMS DES Minor Surgery,PRC DELEGATED CO-COMMISSIONING,BASLOW ROAD & SHOREHAM STREET SURGERIES,24908357,"5,455.00 "
Department of Health,NHS Sheffield CCG,30/11/2018,C&M-GMS Global Sum,PRC DELEGATED CO-COMMISSIONING,BASLOW ROAD & SHOREHAM STREET SURGERIES,24908357,"97,207.54 "
Department of Health,NHS Sheffield CCG,30/11/2018,C&M-GMS MPIG Correction Factor,PRC DELEGATED CO-COMMISSIONING,BASLOW ROAD & SHOREHAM STREET SURGERIES,24908357,292.43 
Department of Health,NHS Sheffield CCG,30/11/2018,C&M-GMS Prem Notional Rent,PRC DELEGATED CO-COMMISSIONING,BASLOW ROAD & SHOREHAM STREET SURGERIES,24908357,"8,511.25 "
Department of Health,NHS Sheffield CCG,30/11/2018,C&M-GMS Prem Rates,PRC DELEGATED CO-COMMISSIONING,BASLOW ROAD & SHOREHAM STREET SURGERIES,24908357,"2,273.00 "
Department of Health,NHS Sheffield CCG,30/11/2018,C&M-GMS QOF Aspiration,PRC DELEGATED CO-COMMISSIONING,BASLOW ROAD & SHOREHAM STREET SURGERIES,24908357,"10,715.96 "
Department of Health,NHS Sheffield CCG,30/11/2018,Cont Care-Physical Disab (65+),CHC ADULT FULLY FUNDED,BC SHEFFIELD LTD,24588708,"35,724.20 "
Department of Health,NHS Sheffield CCG,30/11/2018,C&M-PMS Contract Value,PRC DELEGATED CO-COMMISSIONING,BIRLEY HEALTH CENTRE,24668545,"63,540.28 "
Department of Health,NHS Sheffield CCG,30/11/2018,C&M-PMS DES Learn Dsblty Hlth Chk,PRC DELEGATED CO-COMMISSIONING,BIRLEY HEALTH CENTRE,24668545,"1,820.00 "
Department of Health,NHS Sheffield CCG,30/11/2018,C&M-PMS DES Minor Surgery,PRC DELEGATED CO-COMMISSIONING,BIRLEY HEALTH CENTRE,24668545,"2,870.00 "
Department of Health,NHS Sheffield CCG,30/11/2018,C&M-PMS Out of Hours Opt Outs,PRC DELEGATED CO-COMMISSIONING,BIRLEY HEALTH CENTRE,24668545,7.07 
Department of Health,NHS Sheffield CCG,30/11/2018,C&M-PMS PCO Other,PRC DELEGATED CO-COMMISSIONING,BIRLEY HEALTH CENTRE,24668545,"4,170.81 "
Department of Health,NHS Sheffield CCG,30/11/2018,C&M-PMS Prem Notional Rent,PRC DELEGATED CO-COMMISSIONING,BIRLEY HEALTH CENTRE,24668545,"7,600.58 "
Department of Health,NHS Sheffield CCG,30/11/2018,C&M-PMS Prem Rates,PRC DELEGATED CO-COMMISSIONING,BIRLEY HEALTH CENTRE,24668545,"11,554.41 "
Department of Health,NHS Sheffield CCG,30/11/2018,C&M-PMS Prem Water Rates,PRC DELEGATED CO-COMMISSIONING,BIRLEY HEALTH CENTRE,24668545,322.91 
Department of Health,NHS Sheffield CCG,30/11/2018,C&M-PMS QOF Aspiration,PRC DELEGATED CO-COMMISSIONING,BIRLEY HEALTH CENTRE,24668545,"7,642.20 "
Department of Health,NHS Sheffield CCG,30/11/2018,Clinical&Medical-Independent Sector,ACUTE COMMISSIONING,BMI HEALTHCARE LTD,24711140,"84,881.31 "
Department of Health,NHS Sheffield CCG,30/11/2018,C&M-GMS Cost of Drugs -Prescribing,LOCAL ENHANCED SERVICES,BROOMHILL SURGERY,24928087,"1,792.62 "
Department of Health,NHS Sheffield CCG,30/11/2018,C&M-GMS DES Minor Surgery,PRC DELEGATED CO-COMMISSIONING,BROOMHILL SURGERY,24928087,765.00 
Department of Health,NHS Sheffield CCG,30/11/2018,C&M-GMS Global Sum,PRC DELEGATED CO-COMMISSIONING,BROOMHILL SURGERY,24928087,"63,706.17 "
Department of Health,NHS Sheffield CCG,30/11/2018,C&M-GMS MPIG Correction Factor,PRC DELEGATED CO-COMMISSIONING,BROOMHILL SURGERY,24928087,502.00 
Department of Health,NHS Sheffield CCG,30/11/2018,C&M-GMS PCO Locum Adop/Pat/Mat,PRC DELEGATED CO-COMMISSIONING,BROOMHILL SURGERY,24928087,"3,557.67 "
Department of Health,NHS Sheffield CCG,30/11/2018,C&M-GMS Prem Cost Rent,PRC DELEGATED CO-COMMISSIONING,BROOMHILL SURGERY,24928087,"3,380.00 "
Department of Health,NHS Sheffield CCG,30/11/2018,C&M-GMS Prem Notional Rent,PRC DELEGATED CO-COMMISSIONING,BROOMHILL SURGERY,24928087,"2,612.50 "
Department of Health,NHS Sheffield CCG,30/11/2018,C&M-GMS Prem Rates,PRC DELEGATED CO-COMMISSIONING,BROOMHILL SURGERY,24928087,"1,848.00 "
Department of Health,NHS Sheffield CCG,30/11/2018,C&M-GMS Prof Fees Prescribing,PRC DELEGATED CO-COMMISSIONING,BROOMHILL SURGERY,24928087,94.30 
Department of Health,NHS Sheffield CCG,30/11/2018,C&M-GMS QOF Aspiration,PRC DELEGATED CO-COMMISSIONING,BROOMHILL SURGERY,24928087,"6,274.17 "
Department of Health,NHS Sheffield CCG,30/11/2018,C&M-GMS IT Comm Servs -GP Practices,PRIMARY CARE IT,BT GLOBAL SERVICES,24812485,"24,124.66 "
Department of Health,NHS Sheffield CCG,30/11/2018,Computer Software/License,CORPORATE COSTS & SERVICES,BT GLOBAL SERVICES,24812485,"2,115.60 "
Department of Health,NHS Sheffield CCG,30/11/2018,C&M-GMS Cost of Drugs -Prescribing,LOCAL ENHANCED SERVICES,BUCHANAN ROAD SURGERY,24908360,95.36 
Department of Health,NHS Sheffield CCG,30/11/2018,C&M-GMS DES Minor Surgery,PRC DELEGATED CO-COMMISSIONING,BUCHANAN ROAD SURGERY,24908360,240.00 
Department of Health,NHS Sheffield CCG,30/11/2018,C&M-GMS GP Statutory Levy,PRC DELEGATED CO-COMMISSIONING,BUCHANAN ROAD SURGERY,24908360,0.72 
Department of Health,NHS Sheffield CCG,30/11/2018,C&M-GMS Global Sum,PRC DELEGATED CO-COMMISSIONING,BUCHANAN ROAD SURGERY,24908360,"35,636.28 "
Department of Health,NHS Sheffield CCG,30/11/2018,C&M-GMS MPIG Correction Factor,PRC DELEGATED CO-COMMISSIONING,BUCHANAN ROAD SURGERY,24908360,"1,310.51 "
Department of Health,NHS Sheffield CCG,30/11/2018,C&M-GMS Prem Notional Rent,PRC DELEGATED CO-COMMISSIONING,BUCHANAN ROAD SURGERY,24908360,"2,595.83 "
Department of Health,NHS Sheffield CCG,30/11/2018,C&M-GMS Prem Rates,PRC DELEGATED CO-COMMISSIONING,BUCHANAN ROAD SURGERY,24908360,864.00 
Department of Health,NHS Sheffield CCG,30/11/2018,C&M-GMS Prof Fees Prescribing,PRC DELEGATED CO-COMMISSIONING,BUCHANAN ROAD SURGERY,24908360,32.20 
Department of Health,NHS Sheffield CCG,30/11/2018,C&M-GMS QOF Aspiration,PRC DELEGATED CO-COMMISSIONING,BUCHANAN ROAD SURGERY,24908360,"4,144.11 "
Department of Health,NHS Sheffield CCG,30/11/2018,C&M-GMS Voluntary Levy,PRC DELEGATED CO-COMMISSIONING,BUCHANAN ROAD SURGERY,24908360,0.12 
Department of Health,NHS Sheffield CCG,30/11/2018,C&M-PMS Contract Value,PRC DELEGATED CO-COMMISSIONING,BURNCROSS SURGERY,24668547,"122,323.41 "
Department of Health,NHS Sheffield CCG,30/11/2018,C&M-PMS DES Learn Dsblty Hlth Chk,PRC DELEGATED CO-COMMISSIONING,BURNCROSS SURGERY,24668547,"1,400.00 "
Department of Health,NHS Sheffield CCG,30/11/2018,C&M-PMS DES Minor Surgery,PRC DELEGATED CO-COMMISSIONING,BURNCROSS SURGERY,24668547,"2,025.00 "
Department of Health,NHS Sheffield CCG,30/11/2018,C&M-PMS Prem Notional Rent,PRC DELEGATED CO-COMMISSIONING,BURNCROSS SURGERY,24668547,"14,058.33 "
Department of Health,NHS Sheffield CCG,30/11/2018,C&M-PMS QOF Aspiration,PRC DELEGATED CO-COMMISSIONING,BURNCROSS SURGERY,24668547,"16,082.74 "
Department of Health,NHS Sheffield CCG,30/11/2018,C&M-PMS Contract Value,PRC DELEGATED CO-COMMISSIONING,BURNGREAVE SURGERY,24668549,"56,875.51 "
Department of Health,NHS Sheffield CCG,30/11/2018,C&M-PMS DES Minor Surgery,PRC DELEGATED CO-COMMISSIONING,BURNGREAVE SURGERY,24668549,480.00 
Department of Health,NHS Sheffield CCG,30/11/2018,C&M-PMS Prem Notional Rent,PRC DELEGATED CO-COMMISSIONING,BURNGREAVE SURGERY,24668549,"6,622.92 "
Department of Health,NHS Sheffield CCG,30/11/2018,C&M-PMS Prem Rates,PRC DELEGATED CO-COMMISSIONING,BURNGREAVE SURGERY,24668549,"1,929.00 "
Department of Health,NHS Sheffield CCG,30/11/2018,C&M-PMS QOF Aspiration,PRC DELEGATED CO-COMMISSIONING,BURNGREAVE SURGERY,24668549,"4,881.27 "
Department of Health,NHS Sheffield CCG,30/11/2018,C&M-GMS Cost of Drugs -Prescribing,LOCAL ENHANCED SERVICES,CARTERKNOWLE & DORE MEDICAL PRACTICE,24908368,"6,560.37 "
Department of Health,NHS Sheffield CCG,30/11/2018,C&M-GMS DES Learn Dsblty Hlth Chk,PRC DELEGATED CO-COMMISSIONING,CARTERKNOWLE & DORE MEDICAL PRACTICE,24908368,980.00 
Department of Health,NHS Sheffield CCG,30/11/2018,C&M-GMS DES Minor Surgery,PRC DELEGATED CO-COMMISSIONING,CARTERKNOWLE & DORE MEDICAL PRACTICE,24908368,"2,295.00 "
Department of Health,NHS Sheffield CCG,30/11/2018,C&M-GMS Global Sum,PRC DELEGATED CO-COMMISSIONING,CARTERKNOWLE & DORE MEDICAL PRACTICE,24908368,"84,526.30 "
Department of Health,NHS Sheffield CCG,30/11/2018,C&M-GMS MPIG Correction Factor,PRC DELEGATED CO-COMMISSIONING,CARTERKNOWLE & DORE MEDICAL PRACTICE,24908368,"1,494.59 "
Department of Health,NHS Sheffield CCG,30/11/2018,C&M-GMS PCO Other,PRC DELEGATED CO-COMMISSIONING,CARTERKNOWLE & DORE MEDICAL PRACTICE,24908368,838.11 
Department of Health,NHS Sheffield CCG,30/11/2018,C&M-GMS Prem Notional Rent,PRC DELEGATED CO-COMMISSIONING,CARTERKNOWLE & DORE MEDICAL PRACTICE,24908368,"7,596.50 "
Department of Health,NHS Sheffield CCG,30/11/2018,C&M-GMS Prem Rates,PRC DELEGATED CO-COMMISSIONING,CARTERKNOWLE & DORE MEDICAL PRACTICE,24908368,"1,880.00 "
Department of Health,NHS Sheffield CCG,30/11/2018,C&M-GMS Prof Fees Prescribing,PRC DELEGATED CO-COMMISSIONING,CARTERKNOWLE & DORE MEDICAL PRACTICE,24908368,"1,094.80 "
Department of Health,NHS Sheffield CCG,30/11/2018,C&M-GMS QOF Aspiration,PRC DELEGATED CO-COMMISSIONING,CARTERKNOWLE & DORE MEDICAL PRACTICE,24908368,"10,163.70 "
Department of Health,NHS Sheffield CCG,30/11/2018,C&M-GMS Cost of Drugs -Prescribing,LOCAL ENHANCED SERVICES,CHARNOCK HEALTH PRIMARY CARE CENTRE,24908365,764.84 
Department of Health,NHS Sheffield CCG,30/11/2018,C&M-GMS DES Learn Dsblty Hlth Chk,PRC DELEGATED CO-COMMISSIONING,CHARNOCK HEALTH PRIMARY CARE CENTRE,24908365,140.00 
Department of Health,NHS Sheffield CCG,30/11/2018,C&M-GMS DES Minor Surgery,PRC DELEGATED CO-COMMISSIONING,CHARNOCK HEALTH PRIMARY CARE CENTRE,24908365,"1,560.00 "
Department of Health,NHS Sheffield CCG,30/11/2018,C&M-GMS Global Sum,PRC DELEGATED CO-COMMISSIONING,CHARNOCK HEALTH PRIMARY CARE CENTRE,24908365,"41,947.71 "
Department of Health,NHS Sheffield CCG,30/11/2018,C&M-GMS MPIG Correction Factor,PRC DELEGATED CO-COMMISSIONING,CHARNOCK HEALTH PRIMARY CARE CENTRE,24908365,413.25 
Department of Health,NHS Sheffield CCG,30/11/2018,C&M-GMS PCO Locum Adop/Pat/Mat,PRC DELEGATED CO-COMMISSIONING,CHARNOCK HEALTH PRIMARY CARE CENTRE,24908365,"3,651.76 "
Department of Health,NHS Sheffield CCG,30/11/2018,C&M-GMS PCO Other,PRC DELEGATED CO-COMMISSIONING,CHARNOCK HEALTH PRIMARY CARE CENTRE,24908365,395.85 
Department of Health,NHS Sheffield CCG,30/11/2018,C&M-GMS Prem Notional Rent,PRC DELEGATED CO-COMMISSIONING,CHARNOCK HEALTH PRIMARY CARE CENTRE,24908365,335.00 
Department of Health,NHS Sheffield CCG,30/11/2018,C&M-GMS Prem Rates,PRC DELEGATED CO-COMMISSIONING,CHARNOCK HEALTH PRIMARY CARE CENTRE,24908365,"1,247.00 "
Department of Health,NHS Sheffield CCG,30/11/2018,C&M-GMS Prof Fees Prescribing,PRC DELEGATED CO-COMMISSIONING,CHARNOCK HEALTH PRIMARY CARE CENTRE,24908365,82.80 
Department of Health,NHS Sheffield CCG,30/11/2018,C&M-GMS QOF Aspiration,PRC DELEGATED CO-COMMISSIONING,CHARNOCK HEALTH PRIMARY CARE CENTRE,24908365,"4,710.20 "
Department of Health,NHS Sheffield CCG,30/11/2018,Hcare Srv Rec Fdtn Trust-Non Contract,CLINICAL LEADS,CHESTERFIELD ROYAL HOSPITAL NHS FOUNDATION TRUST,24556832,"36,177.50 "
Department of Health,NHS Sheffield CCG,30/11/2018,Hcare Srv Rec Fdtn Trust-Contract Baseline,ACUTE COMMISSIONING,CHESTERFIELD ROYAL HOSPITAL NHS FOUNDATION TRUST,24632354,"25,115.00 "
Department of Health,NHS Sheffield CCG,30/11/2018,Hcare Srv Rec Fdtn Trust-Contract Baseline,ACUTE COMMISSIONING,CHESTERFIELD ROYAL HOSPITAL NHS FOUNDATION TRUST,24745468,"266,428.00 "
Department of Health,NHS Sheffield CCG,30/11/2018,Miscellaneous Expenditure (L9),CLINICAL LEADS,CHESTERFIELD ROYAL HOSPITAL NHS FOUNDATION TRUST,24795098,"40,505.00 "
Department of Health,NHS Sheffield CCG,30/11/2018,Clinical&Medical-Independent Sector,ACUTE COMMISSIONING,CLAREMONT HOSPITAL,24711674,"65,047.00 "
Department of Health,NHS Sheffield CCG,30/11/2018,Voids and Subsidies,PRC DELEGATED CO-COMMISSIONING,COMMUNITY HEALTH PARTNERSHIPS LTD,24711746,"20,929.51 "
Department of Health,NHS Sheffield CCG,30/11/2018,Voids and Subsidies,RECHARGES NHS PROPERTY SERVICES LTD,COMMUNITY HEALTH PARTNERSHIPS LTD,24711746,"113,924.62 "
Department of Health,NHS Sheffield CCG,30/11/2018,Cont Care-Funded Nursing Care Allow,FUNDED NURSING CARE,COUNTRY COURT CARE LTD,24651338,"27,180.98 "
Department of Health,NHS Sheffield CCG,30/11/2018,C&M-GMS Cost of Drugs -Prescribing,LOCAL ENHANCED SERVICES,CROOKES PRACTICE,24908372,"1,312.32 "
Department of Health,NHS Sheffield CCG,30/11/2018,C&M-GMS DES Learn Dsblty Hlth Chk,PRC DELEGATED CO-COMMISSIONING,CROOKES PRACTICE,24908372,"1,680.00 "
Department of Health,NHS Sheffield CCG,30/11/2018,C&M-GMS Global Sum,PRC DELEGATED CO-COMMISSIONING,CROOKES PRACTICE,24908372,"50,361.31 "
Department of Health,NHS Sheffield CCG,30/11/2018,C&M-GMS MPIG Correction Factor,PRC DELEGATED CO-COMMISSIONING,CROOKES PRACTICE,24908372,"1,545.92 "
Department of Health,NHS Sheffield CCG,30/11/2018,C&M-GMS PCO Other,PRC DELEGATED CO-COMMISSIONING,CROOKES PRACTICE,24908372,559.22 
Department of Health,NHS Sheffield CCG,30/11/2018,C&M-GMS Prem Notional Rent,PRC DELEGATED CO-COMMISSIONING,CROOKES PRACTICE,24908372,"3,874.67 "
Department of Health,NHS Sheffield CCG,30/11/2018,C&M-GMS Prem Rates,PRC DELEGATED CO-COMMISSIONING,CROOKES PRACTICE,24908372,"1,476.00 "
Department of Health,NHS Sheffield CCG,30/11/2018,C&M-GMS Prof Fees Prescribing,PRC DELEGATED CO-COMMISSIONING,CROOKES PRACTICE,24908372,204.70 
Department of Health,NHS Sheffield CCG,30/11/2018,C&M-GMS QOF Aspiration,PRC DELEGATED CO-COMMISSIONING,CROOKES PRACTICE,24908372,"5,056.52 "
Department of Health,NHS Sheffield CCG,30/11/2018,C&M-PMS Contract Value,PRC DELEGATED CO-COMMISSIONING,DEEPCAR MEDICAL CENTRE,24668553,"41,518.77 "
Department of Health,NHS Sheffield CCG,30/11/2018,C&M-PMS DES Minor Surgery,PRC DELEGATED CO-COMMISSIONING,DEEPCAR MEDICAL CENTRE,24668553,80.00 
Department of Health,NHS Sheffield CCG,30/11/2018,C&M-PMS Prem Healthcentre Rent,PRC DELEGATED CO-COMMISSIONING,DEEPCAR MEDICAL CENTRE,24668553,"29,067.58 "
Department of Health,NHS Sheffield CCG,30/11/2018,C&M-PMS QOF Aspiration,PRC DELEGATED CO-COMMISSIONING,DEEPCAR MEDICAL CENTRE,24668553,"4,182.29 "
Department of Health,NHS Sheffield CCG,30/11/2018,C&M-GMS Cost of Drugs -Prescribing,LOCAL ENHANCED SERVICES,DEVONSHIRE GREEN MEDICAL CENTRE,24908375,"1,128.48 "
Department of Health,NHS Sheffield CCG,30/11/2018,C&M-GMS DES Minor Surgery,PRC DELEGATED CO-COMMISSIONING,DEVONSHIRE GREEN MEDICAL CENTRE,24908375,240.00 
Department of Health,NHS Sheffield CCG,30/11/2018,C&M-GMS Global Sum,PRC DELEGATED CO-COMMISSIONING,DEVONSHIRE GREEN MEDICAL CENTRE,24908375,"45,680.76 "
Department of Health,NHS Sheffield CCG,30/11/2018,C&M-GMS MPIG Correction Factor,PRC DELEGATED CO-COMMISSIONING,DEVONSHIRE GREEN MEDICAL CENTRE,24908375,"3,231.20 "
Department of Health,NHS Sheffield CCG,30/11/2018,C&M-GMS Prem Notional Rent,PRC DELEGATED CO-COMMISSIONING,DEVONSHIRE GREEN MEDICAL CENTRE,24908375,"5,987.50 "
Department of Health,NHS Sheffield CCG,30/11/2018,C&M-GMS Prem Rates,PRC DELEGATED CO-COMMISSIONING,DEVONSHIRE GREEN MEDICAL CENTRE,24908375,866.00 
Department of Health,NHS Sheffield CCG,30/11/2018,C&M-GMS Prof Fees Prescribing,PRC DELEGATED CO-COMMISSIONING,DEVONSHIRE GREEN MEDICAL CENTRE,24908375,202.40 
Department of Health,NHS Sheffield CCG,30/11/2018,C&M-GMS QOF Aspiration,PRC DELEGATED CO-COMMISSIONING,DEVONSHIRE GREEN MEDICAL CENTRE,24908375,"4,641.81 "
Department of Health,NHS Sheffield CCG,30/11/2018,Hcare Srv Rec Fdtn Trust-Contract Baseline,ACUTE COMMISSIONING,DONCASTER AND BASSETLAW HOSPITALS NHS FOUNDATION TRUST,24632362,"35,160.00 "
Department of Health,NHS Sheffield CCG,30/11/2018,Oth Travel Costs-Car Mileage,BEREAVEMENT SERVICE,DONCASTER AND BASSETLAW HOSPITALS NHS FOUNDATION TRUST,24890564,32.20 
Department of Health,NHS Sheffield CCG,30/11/2018,Other Travel Costs - Car Parking,BEREAVEMENT SERVICE,DONCASTER AND BASSETLAW HOSPITALS NHS FOUNDATION TRUST,24890564,(34.00)
Department of Health,NHS Sheffield CCG,30/11/2018,Seconded-Basic Sal-Staff fm oth org,BEREAVEMENT SERVICE,DONCASTER AND BASSETLAW HOSPITALS NHS FOUNDATION TRUST,24890564,"46,675.62 "
Department of Health,NHS Sheffield CCG,30/11/2018,Seconded-Employer's NHI Costs,BEREAVEMENT SERVICE,DONCASTER AND BASSETLAW HOSPITALS NHS FOUNDATION TRUST,24890564,"5,592.91 "
Department of Health,NHS Sheffield CCG,30/11/2018,C&M-PMS Contract Value,PRC DELEGATED CO-COMMISSIONING,DOVERCOURT SURGERY,24668555,"73,595.89 "
Department of Health,NHS Sheffield CCG,30/11/2018,C&M-PMS DES Minor Surgery,PRC DELEGATED CO-COMMISSIONING,DOVERCOURT SURGERY,24668555,"1,720.00 "
Department of Health,NHS Sheffield CCG,30/11/2018,C&M-PMS Out of Hours Opt Outs,PRC DELEGATED CO-COMMISSIONING,DOVERCOURT SURGERY,24668555,7.91 
Department of Health,NHS Sheffield CCG,30/11/2018,C&M-PMS PCO Other,PRC DELEGATED CO-COMMISSIONING,DOVERCOURT SURGERY,24668555,584.56 
Department of Health,NHS Sheffield CCG,30/11/2018,C&M-PMS Prem Actual Rent,PRC DELEGATED CO-COMMISSIONING,DOVERCOURT SURGERY,24668555,"12,400.00 "
Department of Health,NHS Sheffield CCG,30/11/2018,C&M-PMS Prem Notional Rent,PRC DELEGATED CO-COMMISSIONING,DOVERCOURT SURGERY,24668555,"1,708.34 "
Department of Health,NHS Sheffield CCG,30/11/2018,C&M-PMS QOF Aspiration,PRC DELEGATED CO-COMMISSIONING,DOVERCOURT SURGERY,24668555,"7,443.07 "
Department of Health,NHS Sheffield CCG,30/11/2018,C&M-PMS Contract Value,PRC DELEGATED CO-COMMISSIONING,DR MEHROTRA & PARTNER,24668557,"28,016.85 "
Department of Health,NHS Sheffield CCG,30/11/2018,C&M-PMS PCO Other,PRC DELEGATED CO-COMMISSIONING,DR MEHROTRA & PARTNER,24668557,621.00 
Department of Health,NHS Sheffield CCG,30/11/2018,C&M-PMS Prem Actual Rent,PRC DELEGATED CO-COMMISSIONING,DR MEHROTRA & PARTNER,24668557,"2,650.00 "
Department of Health,NHS Sheffield CCG,30/11/2018,C&M-PMS Prem Notional Rent,PRC DELEGATED CO-COMMISSIONING,DR MEHROTRA & PARTNER,24668557,"5,157.29 "
Department of Health,NHS Sheffield CCG,30/11/2018,C&M-PMS Prem Rates,PRC DELEGATED CO-COMMISSIONING,DR MEHROTRA & PARTNER,24668557,"1,463.00 "
Department of Health,NHS Sheffield CCG,30/11/2018,C&M-PMS QOF Aspiration,PRC DELEGATED CO-COMMISSIONING,DR MEHROTRA & PARTNER,24668557,"3,078.44 "
Department of Health,NHS Sheffield CCG,30/11/2018,C&M-PMS Contract Value,PRC DELEGATED CO-COMMISSIONING,DR MILNER & PARTNERS,24668558,(196.42)
Department of Health,NHS Sheffield CCG,30/11/2018,C&M-PMS GP Statutory Levy,PRC DELEGATED CO-COMMISSIONING,DR MILNER & PARTNERS,24668558,(319.83)
Department of Health,NHS Sheffield CCG,30/11/2018,C&M-PMS Out of Hours Opt Outs,PRC DELEGATED CO-COMMISSIONING,DR MILNER & PARTNERS,24668558,"(3,576.85)"
Department of Health,NHS Sheffield CCG,30/11/2018,C&M-PMS Voluntary Levy,PRC DELEGATED CO-COMMISSIONING,DR MILNER & PARTNERS,24668558,(53.31)
Department of Health,NHS Sheffield CCG,30/11/2018,C&M-PMS Contract Value,PRC DELEGATED CO-COMMISSIONING,DR MILNER & PARTNERS,24693001,"75,923.09 "
Department of Health,NHS Sheffield CCG,30/11/2018,C&M-PMS DES Minor Surgery,PRC DELEGATED CO-COMMISSIONING,DR MILNER & PARTNERS,24693001,"2,370.00 "
Department of Health,NHS Sheffield CCG,30/11/2018,C&M-PMS Out of Hours Opt Outs,PRC DELEGATED CO-COMMISSIONING,DR MILNER & PARTNERS,24693001,9.66 
Department of Health,NHS Sheffield CCG,30/11/2018,C&M-PMS Prem Actual Rent,PRC DELEGATED CO-COMMISSIONING,DR MILNER & PARTNERS,24693001,"11,382.00 "
Department of Health,NHS Sheffield CCG,30/11/2018,C&M-PMS Prem Notional Rent,PRC DELEGATED CO-COMMISSIONING,DR MILNER & PARTNERS,24693001,"4,462.42 "
Department of Health,NHS Sheffield CCG,30/11/2018,C&M-PMS Prem Rates,PRC DELEGATED CO-COMMISSIONING,DR MILNER & PARTNERS,24693001,"2,464.00 "
Department of Health,NHS Sheffield CCG,30/11/2018,C&M-PMS QOF Aspiration,PRC DELEGATED CO-COMMISSIONING,DR MILNER & PARTNERS,24693001,"6,553.23 "
Department of Health,NHS Sheffield CCG,30/11/2018,C&M-GMS Cost of Drugs -Prescribing,LOCAL ENHANCED SERVICES,DUKE MEDICAL CENTRE,24908383,"3,246.82 "
Department of Health,NHS Sheffield CCG,30/11/2018,C&M-GMS DES Minor Surgery,PRC DELEGATED CO-COMMISSIONING,DUKE MEDICAL CENTRE,24908383,760.00 
Department of Health,NHS Sheffield CCG,30/11/2018,C&M-GMS Global Sum,PRC DELEGATED CO-COMMISSIONING,DUKE MEDICAL CENTRE,24908383,"58,018.51 "
Department of Health,NHS Sheffield CCG,30/11/2018,C&M-GMS MPIG Correction Factor,PRC DELEGATED CO-COMMISSIONING,DUKE MEDICAL CENTRE,24908383,612.51 
Department of Health,NHS Sheffield CCG,30/11/2018,C&M-GMS PCO Other,PRC DELEGATED CO-COMMISSIONING,DUKE MEDICAL CENTRE,24908383,495.17 
Department of Health,NHS Sheffield CCG,30/11/2018,C&M-GMS Prem Notional Rent,PRC DELEGATED CO-COMMISSIONING,DUKE MEDICAL CENTRE,24908383,"5,721.67 "
Department of Health,NHS Sheffield CCG,30/11/2018,C&M-GMS Prem Rates,PRC DELEGATED CO-COMMISSIONING,DUKE MEDICAL CENTRE,24908383,"1,098.00 "
Department of Health,NHS Sheffield CCG,30/11/2018,C&M-GMS Prof Fees Prescribing,PRC DELEGATED CO-COMMISSIONING,DUKE MEDICAL CENTRE,24908383,871.70 
Department of Health,NHS Sheffield CCG,30/11/2018,C&M-GMS QOF Aspiration,PRC DELEGATED CO-COMMISSIONING,DUKE MEDICAL CENTRE,24908383,"4,948.64 "
Department of Health,NHS Sheffield CCG,30/11/2018,C&M-PMS Contract Value,PRC DELEGATED CO-COMMISSIONING,DUNNINC ROAD SURGERY,24668560,"24,468.91 "
Department of Health,NHS Sheffield CCG,30/11/2018,C&M-PMS DES Minor Surgery,PRC DELEGATED CO-COMMISSIONING,DUNNINC ROAD SURGERY,24668560,"1,770.00 "
Department of Health,NHS Sheffield CCG,30/11/2018,C&M-PMS Prem Notional Rent,PRC DELEGATED CO-COMMISSIONING,DUNNINC ROAD SURGERY,24668560,"1,664.58 "
Department of Health,NHS Sheffield CCG,30/11/2018,C&M-PMS Prem Water Rates,PRC DELEGATED CO-COMMISSIONING,DUNNINC ROAD SURGERY,24668560,131.98 
Department of Health,NHS Sheffield CCG,30/11/2018,C&M-PMS QOF Aspiration,PRC DELEGATED CO-COMMISSIONING,DUNNINC ROAD SURGERY,24668560,"2,554.49 "
Department of Health,NHS Sheffield CCG,30/11/2018,C&M-PMS Contract Value,PRC DELEGATED CO-COMMISSIONING,DYKES HALL MEDICAL CENTRE,24668562,"72,721.33 "
Department of Health,NHS Sheffield CCG,30/11/2018,C&M-PMS DES Minor Surgery,PRC DELEGATED CO-COMMISSIONING,DYKES HALL MEDICAL CENTRE,24668562,"1,320.00 "
Department of Health,NHS Sheffield CCG,30/11/2018,C&M-PMS Out of Hours Opt Outs,PRC DELEGATED CO-COMMISSIONING,DYKES HALL MEDICAL CENTRE,24668562,12.02 
Department of Health,NHS Sheffield CCG,30/11/2018,C&M-PMS Prem Notional Rent,PRC DELEGATED CO-COMMISSIONING,DYKES HALL MEDICAL CENTRE,24668562,"5,377.08 "
Department of Health,NHS Sheffield CCG,30/11/2018,C&M-PMS Prem Rates,PRC DELEGATED CO-COMMISSIONING,DYKES HALL MEDICAL CENTRE,24668562,"1,039.00 "
Department of Health,NHS Sheffield CCG,30/11/2018,C&M-PMS QOF Aspiration,PRC DELEGATED CO-COMMISSIONING,DYKES HALL MEDICAL CENTRE,24668562,"8,079.17 "
Department of Health,NHS Sheffield CCG,30/11/2018,C&M-PMS Contract Value,PRC DELEGATED CO-COMMISSIONING,EAST BANK MEDICAL CENTRE,24668564,"47,716.34 "
Department of Health,NHS Sheffield CCG,30/11/2018,C&M-PMS DES Learn Dsblty Hlth Chk,PRC DELEGATED CO-COMMISSIONING,EAST BANK MEDICAL CENTRE,24668564,140.00 
Department of Health,NHS Sheffield CCG,30/11/2018,C&M-PMS DES Minor Surgery,PRC DELEGATED CO-COMMISSIONING,EAST BANK MEDICAL CENTRE,24668564,500.00 
Department of Health,NHS Sheffield CCG,30/11/2018,C&M-PMS Prem Notional Rent,PRC DELEGATED CO-COMMISSIONING,EAST BANK MEDICAL CENTRE,24668564,"10,583.34 "
Department of Health,NHS Sheffield CCG,30/11/2018,C&M-PMS Prem Rates,PRC DELEGATED CO-COMMISSIONING,EAST BANK MEDICAL CENTRE,24668564,"2,729.00 "
Department of Health,NHS Sheffield CCG,30/11/2018,C&M-PMS QOF Aspiration,PRC DELEGATED CO-COMMISSIONING,EAST BANK MEDICAL CENTRE,24668564,"4,881.64 "
Department of Health,NHS Sheffield CCG,30/11/2018,C&M-GMS Cost of Drugs -Prescribing,LOCAL ENHANCED SERVICES,ECCLESFIELD GROUP PRACTICE,24908379,"3,332.61 "
Department of Health,NHS Sheffield CCG,30/11/2018,C&M-GMS DES Learn Dsblty Hlth Chk,PRC DELEGATED CO-COMMISSIONING,ECCLESFIELD GROUP PRACTICE,24908379,"4,340.00 "
Department of Health,NHS Sheffield CCG,30/11/2018,C&M-GMS DES Minor Surgery,PRC DELEGATED CO-COMMISSIONING,ECCLESFIELD GROUP PRACTICE,24908379,880.00 
Department of Health,NHS Sheffield CCG,30/11/2018,C&M-GMS Global Sum,PRC DELEGATED CO-COMMISSIONING,ECCLESFIELD GROUP PRACTICE,24908379,"67,402.63 "
Department of Health,NHS Sheffield CCG,30/11/2018,C&M-GMS PCO Other,PRC DELEGATED CO-COMMISSIONING,ECCLESFIELD GROUP PRACTICE,24908379,572.78 
Department of Health,NHS Sheffield CCG,30/11/2018,C&M-GMS Prem Notional Rent,PRC DELEGATED CO-COMMISSIONING,ECCLESFIELD GROUP PRACTICE,24908379,"6,805.42 "
Department of Health,NHS Sheffield CCG,30/11/2018,C&M-GMS Prem Rates,PRC DELEGATED CO-COMMISSIONING,ECCLESFIELD GROUP PRACTICE,24908379,"1,278.00 "
Department of Health,NHS Sheffield CCG,30/11/2018,C&M-GMS Prem Water Rates,PRC DELEGATED CO-COMMISSIONING,ECCLESFIELD GROUP PRACTICE,24908379,614.25 
Department of Health,NHS Sheffield CCG,30/11/2018,C&M-GMS Prof Fees Prescribing,PRC DELEGATED CO-COMMISSIONING,ECCLESFIELD GROUP PRACTICE,24908379,609.50 
Department of Health,NHS Sheffield CCG,30/11/2018,C&M-GMS QOF Aspiration,PRC DELEGATED CO-COMMISSIONING,ECCLESFIELD GROUP PRACTICE,24908379,"8,811.44 "
Department of Health,NHS Sheffield CCG,30/11/2018,C&M-GMS Cost of Drugs -Prescribing,LOCAL ENHANCED SERVICES,ELM LANE SURGERY,24908381,"3,773.28 "
Department of Health,NHS Sheffield CCG,30/11/2018,C&M-GMS DES Minor Surgery,PRC DELEGATED CO-COMMISSIONING,ELM LANE SURGERY,24908381,80.00 
Department of Health,NHS Sheffield CCG,30/11/2018,C&M-GMS Global Sum,PRC DELEGATED CO-COMMISSIONING,ELM LANE SURGERY,24908381,"39,579.09 "
Department of Health,NHS Sheffield CCG,30/11/2018,C&M-GMS MPIG Correction Factor,PRC DELEGATED CO-COMMISSIONING,ELM LANE SURGERY,24908381,838.53 
Department of Health,NHS Sheffield CCG,30/11/2018,C&M-GMS Prem Notional Rent,PRC DELEGATED CO-COMMISSIONING,ELM LANE SURGERY,24908381,"5,305.50 "
Department of Health,NHS Sheffield CCG,30/11/2018,C&M-GMS Prem Rates,PRC DELEGATED CO-COMMISSIONING,ELM LANE SURGERY,24908381,"1,340.00 "
Department of Health,NHS Sheffield CCG,30/11/2018,C&M-GMS Prof Fees Prescribing,PRC DELEGATED CO-COMMISSIONING,ELM LANE SURGERY,24908381,717.60 
Department of Health,NHS Sheffield CCG,30/11/2018,C&M-GMS QOF Aspiration,PRC DELEGATED CO-COMMISSIONING,ELM LANE SURGERY,24908381,"4,467.14 "
Department of Health,NHS Sheffield CCG,30/11/2018,Cont Care-Physical Disab (<65),CHC ADULT FULLY FUNDED,FAIRWINDS HEALTH CARE LTD,24651291,"37,939.03 "
Department of Health,NHS Sheffield CCG,30/11/2018,C&M-PMS Contract Value,PRC DELEGATED CO-COMMISSIONING,FALKLAND HOUSE,24668568,"26,087.20 "
Department of Health,NHS Sheffield CCG,30/11/2018,C&M-PMS DES Minor Surgery,PRC DELEGATED CO-COMMISSIONING,FALKLAND HOUSE,24668568,760.00 
Department of Health,NHS Sheffield CCG,30/11/2018,C&M-PMS Out of Hours Opt Outs,PRC DELEGATED CO-COMMISSIONING,FALKLAND HOUSE,24668568,7.20 
Department of Health,NHS Sheffield CCG,30/11/2018,C&M-PMS PCO Other,PRC DELEGATED CO-COMMISSIONING,FALKLAND HOUSE,24668568,307.67 
Department of Health,NHS Sheffield CCG,30/11/2018,C&M-PMS Prem Notional Rent,PRC DELEGATED CO-COMMISSIONING,FALKLAND HOUSE,24668568,"1,866.67 "
Department of Health,NHS Sheffield CCG,30/11/2018,C&M-PMS Prem Rates,PRC DELEGATED CO-COMMISSIONING,FALKLAND HOUSE,24668568,756.00 
Department of Health,NHS Sheffield CCG,30/11/2018,C&M-PMS QOF Aspiration,PRC DELEGATED CO-COMMISSIONING,FALKLAND HOUSE,24668568,"2,902.49 "
Department of Health,NHS Sheffield CCG,30/11/2018,C&M-GMS Cost of Drugs -Prescribing,LOCAL ENHANCED SERVICES,FAR LANE MEDICAL CENTRE,24908389,"4,711.29 "
Department of Health,NHS Sheffield CCG,30/11/2018,C&M-GMS DES Minor Surgery,PRC DELEGATED CO-COMMISSIONING,FAR LANE MEDICAL CENTRE,24908389,"4,550.00 "
Department of Health,NHS Sheffield CCG,30/11/2018,C&M-GMS Global Sum,PRC DELEGATED CO-COMMISSIONING,FAR LANE MEDICAL CENTRE,24908389,"55,112.66 "
Department of Health,NHS Sheffield CCG,30/11/2018,C&M-GMS PCO Other,PRC DELEGATED CO-COMMISSIONING,FAR LANE MEDICAL CENTRE,24908389,518.33 
Department of Health,NHS Sheffield CCG,30/11/2018,C&M-GMS Prem Notional Rent,PRC DELEGATED CO-COMMISSIONING,FAR LANE MEDICAL CENTRE,24908389,"3,462.50 "
Department of Health,NHS Sheffield CCG,30/11/2018,C&M-GMS Prem Rates,PRC DELEGATED CO-COMMISSIONING,FAR LANE MEDICAL CENTRE,24908389,"1,114.00 "
Department of Health,NHS Sheffield CCG,30/11/2018,C&M-GMS Prem Water Rates,PRC DELEGATED CO-COMMISSIONING,FAR LANE MEDICAL CENTRE,24908389,50.96 
Department of Health,NHS Sheffield CCG,30/11/2018,C&M-GMS Prof Fees Prescribing,PRC DELEGATED CO-COMMISSIONING,FAR LANE MEDICAL CENTRE,24908389,"1,030.40 "
Department of Health,NHS Sheffield CCG,30/11/2018,C&M-GMS QOF Aspiration,PRC DELEGATED CO-COMMISSIONING,FAR LANE MEDICAL CENTRE,24908389,"5,824.23 "
Department of Health,NHS Sheffield CCG,30/11/2018,C&M-PMS Contract Value,PRC DELEGATED CO-COMMISSIONING,FIRTH PARK SURGERY,24668566,"75,502.30 "
Department of Health,NHS Sheffield CCG,30/11/2018,C&M-PMS DES Learn Dsblty Hlth Chk,PRC DELEGATED CO-COMMISSIONING,FIRTH PARK SURGERY,24668566,"3,360.00 "
Department of Health,NHS Sheffield CCG,30/11/2018,C&M-PMS DES Minor Surgery,PRC DELEGATED CO-COMMISSIONING,FIRTH PARK SURGERY,24668566,"1,415.00 "
Department of Health,NHS Sheffield CCG,30/11/2018,C&M-PMS PCO Locum Adop/Pat/Mat,PRC DELEGATED CO-COMMISSIONING,FIRTH PARK SURGERY,24668566,"2,524.27 "
Department of Health,NHS Sheffield CCG,30/11/2018,C&M-PMS Prem Notional Rent,PRC DELEGATED CO-COMMISSIONING,FIRTH PARK SURGERY,24668566,"4,500.00 "
Department of Health,NHS Sheffield CCG,30/11/2018,C&M-PMS Prem Rates,PRC DELEGATED CO-COMMISSIONING,FIRTH PARK SURGERY,24668566,"1,330.00 "
Department of Health,NHS Sheffield CCG,30/11/2018,C&M-PMS QOF Aspiration,PRC DELEGATED CO-COMMISSIONING,FIRTH PARK SURGERY,24668566,"7,359.15 "
Department of Health,NHS Sheffield CCG,30/11/2018,C&M-GMS Cost of Drugs -Prescribing,LOCAL ENHANCED SERVICES,FLOWERS HEALTH CENTRE,24908460,"3,329.72 "
Department of Health,NHS Sheffield CCG,30/11/2018,C&M-GMS DES Minor Surgery,PRC DELEGATED CO-COMMISSIONING,FLOWERS HEALTH CENTRE,24908460,720.00 
Department of Health,NHS Sheffield CCG,30/11/2018,C&M-GMS Global Sum,PRC DELEGATED CO-COMMISSIONING,FLOWERS HEALTH CENTRE,24908460,"36,423.08 "
Department of Health,NHS Sheffield CCG,30/11/2018,C&M-GMS MPIG Correction Factor,PRC DELEGATED CO-COMMISSIONING,FLOWERS HEALTH CENTRE,24908460,"1,476.31 "
Department of Health,NHS Sheffield CCG,30/11/2018,C&M-GMS Prem Healthcentre Rent,PRC DELEGATED CO-COMMISSIONING,FLOWERS HEALTH CENTRE,24908460,"33,513.30 "
Department of Health,NHS Sheffield CCG,30/11/2018,C&M-GMS Prof Fees Prescribing,PRC DELEGATED CO-COMMISSIONING,FLOWERS HEALTH CENTRE,24908460,627.90 
Department of Health,NHS Sheffield CCG,30/11/2018,C&M-GMS QOF Aspiration,PRC DELEGATED CO-COMMISSIONING,FLOWERS HEALTH CENTRE,24908460,"4,241.34 "
Department of Health,NHS Sheffield CCG,30/11/2018,C&M-PMS Contract Value,PRC DELEGATED CO-COMMISSIONING,FOXHILL MEDICAL CENTRE SHEFFIELD,24668614,"52,059.97 "
Department of Health,NHS Sheffield CCG,30/11/2018,C&M-PMS DES Learn Dsblty Hlth Chk,PRC DELEGATED CO-COMMISSIONING,FOXHILL MEDICAL CENTRE SHEFFIELD,24668614,"1,960.00 "
Department of Health,NHS Sheffield CCG,30/11/2018,C&M-PMS DES Minor Surgery,PRC DELEGATED CO-COMMISSIONING,FOXHILL MEDICAL CENTRE SHEFFIELD,24668614,405.00 
Department of Health,NHS Sheffield CCG,30/11/2018,C&M-PMS PCO Other,PRC DELEGATED CO-COMMISSIONING,FOXHILL MEDICAL CENTRE SHEFFIELD,24668614,446.84 
Department of Health,NHS Sheffield CCG,30/11/2018,C&M-PMS Prem Healthcentre Rent,PRC DELEGATED CO-COMMISSIONING,FOXHILL MEDICAL CENTRE SHEFFIELD,24668614,"46,751.16 "
Department of Health,NHS Sheffield CCG,30/11/2018,C&M-PMS QOF Aspiration,PRC DELEGATED CO-COMMISSIONING,FOXHILL MEDICAL CENTRE SHEFFIELD,24668614,"5,580.51 "
Department of Health,NHS Sheffield CCG,30/11/2018,C&M-PMS Contract Value,PRC DELEGATED CO-COMMISSIONING,GLEADLESS MEDICAL CENTRE,24693002,"69,605.10 "
Department of Health,NHS Sheffield CCG,30/11/2018,C&M-PMS DES Minor Surgery,PRC DELEGATED CO-COMMISSIONING,GLEADLESS MEDICAL CENTRE,24693002,360.00 
Department of Health,NHS Sheffield CCG,30/11/2018,C&M-PMS Out of Hours Opt Outs,PRC DELEGATED CO-COMMISSIONING,GLEADLESS MEDICAL CENTRE,24693002,16.70 
Department of Health,NHS Sheffield CCG,30/11/2018,C&M-PMS PCO Locum Adop/Pat/Mat,PRC DELEGATED CO-COMMISSIONING,GLEADLESS MEDICAL CENTRE,24693002,"12,443.66 "
Department of Health,NHS Sheffield CCG,30/11/2018,C&M-PMS PCO Other,PRC DELEGATED CO-COMMISSIONING,GLEADLESS MEDICAL CENTRE,24693002,619.11 
Department of Health,NHS Sheffield CCG,30/11/2018,C&M-PMS Prem Notional Rent,PRC DELEGATED CO-COMMISSIONING,GLEADLESS MEDICAL CENTRE,24693002,"6,750.00 "
Department of Health,NHS Sheffield CCG,30/11/2018,C&M-PMS Prem Rates,PRC DELEGATED CO-COMMISSIONING,GLEADLESS MEDICAL CENTRE,24693002,"1,564.00 "
Department of Health,NHS Sheffield CCG,30/11/2018,C&M-PMS QOF Aspiration,PRC DELEGATED CO-COMMISSIONING,GLEADLESS MEDICAL CENTRE,24693002,"7,712.98 "
Department of Health,NHS Sheffield CCG,30/11/2018,C&M-GMS Cost of Drugs -Prescribing,LOCAL ENHANCED SERVICES,GRENOSIDE SURGERY,24908397,"4,995.94 "
Department of Health,NHS Sheffield CCG,30/11/2018,C&M-GMS DES Learn Dsblty Hlth Chk,PRC DELEGATED CO-COMMISSIONING,GRENOSIDE SURGERY,24908397,140.00 
Department of Health,NHS Sheffield CCG,30/11/2018,C&M-GMS DES Minor Surgery,PRC DELEGATED CO-COMMISSIONING,GRENOSIDE SURGERY,24908397,570.00 
Department of Health,NHS Sheffield CCG,30/11/2018,C&M-GMS Global Sum,PRC DELEGATED CO-COMMISSIONING,GRENOSIDE SURGERY,24908397,"57,531.70 "
Department of Health,NHS Sheffield CCG,30/11/2018,C&M-GMS Prem Notional Rent,PRC DELEGATED CO-COMMISSIONING,GRENOSIDE SURGERY,24908397,"8,110.42 "
Department of Health,NHS Sheffield CCG,30/11/2018,C&M-GMS Prem Rates,PRC DELEGATED CO-COMMISSIONING,GRENOSIDE SURGERY,24908397,"1,916.00 "
Department of Health,NHS Sheffield CCG,30/11/2018,C&M-GMS Prem Water Rates,PRC DELEGATED CO-COMMISSIONING,GRENOSIDE SURGERY,24908397,144.17 
Department of Health,NHS Sheffield CCG,30/11/2018,C&M-GMS Prof Fees Prescribing,PRC DELEGATED CO-COMMISSIONING,GRENOSIDE SURGERY,24908397,956.80 
Department of Health,NHS Sheffield CCG,30/11/2018,C&M-GMS QOF Aspiration,PRC DELEGATED CO-COMMISSIONING,GRENOSIDE SURGERY,24908397,"5,655.38 "
Department of Health,NHS Sheffield CCG,30/11/2018,C&M-GMS Cost of Drugs -Prescribing,LOCAL ENHANCED SERVICES,GREYSTONES MEDICAL CENTRE,24908399,986.45 
Department of Health,NHS Sheffield CCG,30/11/2018,C&M-GMS DES Minor Surgery,PRC DELEGATED CO-COMMISSIONING,GREYSTONES MEDICAL CENTRE,24908399,710.00 
Department of Health,NHS Sheffield CCG,30/11/2018,C&M-GMS Global Sum,PRC DELEGATED CO-COMMISSIONING,GREYSTONES MEDICAL CENTRE,24908399,"19,421.30 "
Department of Health,NHS Sheffield CCG,30/11/2018,C&M-GMS MPIG Correction Factor,PRC DELEGATED CO-COMMISSIONING,GREYSTONES MEDICAL CENTRE,24908399,"1,104.46 "
Department of Health,NHS Sheffield CCG,30/11/2018,C&M-GMS PCO Other,PRC DELEGATED CO-COMMISSIONING,GREYSTONES MEDICAL CENTRE,24908399,292.44 
Department of Health,NHS Sheffield CCG,30/11/2018,C&M-GMS Prem Notional Rent,PRC DELEGATED CO-COMMISSIONING,GREYSTONES MEDICAL CENTRE,24908399,"2,885.42 "
Department of Health,NHS Sheffield CCG,30/11/2018,C&M-GMS Prem Rates,PRC DELEGATED CO-COMMISSIONING,GREYSTONES MEDICAL CENTRE,24908399,538.00 
Department of Health,NHS Sheffield CCG,30/11/2018,C&M-GMS Prof Fees Prescribing,PRC DELEGATED CO-COMMISSIONING,GREYSTONES MEDICAL CENTRE,24908399,211.60 
Department of Health,NHS Sheffield CCG,30/11/2018,C&M-GMS QOF Aspiration,PRC DELEGATED CO-COMMISSIONING,GREYSTONES MEDICAL CENTRE,24908399,"2,246.27 "
Department of Health,NHS Sheffield CCG,30/11/2018,C&M-PMS Contract Value,PRC DELEGATED CO-COMMISSIONING,HACKENTHORPE MEDICAL CENTRE,24668571,"48,876.93 "
Department of Health,NHS Sheffield CCG,30/11/2018,C&M-PMS DES Learn Dsblty Hlth Chk,PRC DELEGATED CO-COMMISSIONING,HACKENTHORPE MEDICAL CENTRE,24668571,560.00 
Department of Health,NHS Sheffield CCG,30/11/2018,C&M-PMS DES Minor Surgery,PRC DELEGATED CO-COMMISSIONING,HACKENTHORPE MEDICAL CENTRE,24668571,"1,885.00 "
Department of Health,NHS Sheffield CCG,30/11/2018,C&M-PMS PCO Other,PRC DELEGATED CO-COMMISSIONING,HACKENTHORPE MEDICAL CENTRE,24668571,480.78 
Department of Health,NHS Sheffield CCG,30/11/2018,C&M-PMS Prem Notional Rent,PRC DELEGATED CO-COMMISSIONING,HACKENTHORPE MEDICAL CENTRE,24668571,"4,981.25 "
Department of Health,NHS Sheffield CCG,30/11/2018,C&M-PMS Prem Rates,PRC DELEGATED CO-COMMISSIONING,HACKENTHORPE MEDICAL CENTRE,24668571,"1,196.00 "
Department of Health,NHS Sheffield CCG,30/11/2018,C&M-PMS Prem Water Rates,PRC DELEGATED CO-COMMISSIONING,HACKENTHORPE MEDICAL CENTRE,24668571,67.36 
Department of Health,NHS Sheffield CCG,30/11/2018,C&M-PMS QOF Aspiration,PRC DELEGATED CO-COMMISSIONING,HACKENTHORPE MEDICAL CENTRE,24668571,"6,346.88 "
Department of Health,NHS Sheffield CCG,30/11/2018,C&M-GMS Cost of Drugs -Prescribing,LOCAL ENHANCED SERVICES,HANDSWORTH MEDICAL PRACTICE SHEFFIELD,24908395,"1,370.16 "
Department of Health,NHS Sheffield CCG,30/11/2018,C&M-GMS DES Minor Surgery,PRC DELEGATED CO-COMMISSIONING,HANDSWORTH MEDICAL PRACTICE SHEFFIELD,24908395,320.00 
Department of Health,NHS Sheffield CCG,30/11/2018,C&M-GMS Global Sum,PRC DELEGATED CO-COMMISSIONING,HANDSWORTH MEDICAL PRACTICE SHEFFIELD,24908395,"75,143.63 "
Department of Health,NHS Sheffield CCG,30/11/2018,C&M-GMS Prem Notional Rent,PRC DELEGATED CO-COMMISSIONING,HANDSWORTH MEDICAL PRACTICE SHEFFIELD,24908395,"3,321.66 "
Department of Health,NHS Sheffield CCG,30/11/2018,C&M-GMS Prof Fees Prescribing,PRC DELEGATED CO-COMMISSIONING,HANDSWORTH MEDICAL PRACTICE SHEFFIELD,24908395,253.00 
Department of Health,NHS Sheffield CCG,30/11/2018,C&M-GMS QOF Aspiration,PRC DELEGATED CO-COMMISSIONING,HANDSWORTH MEDICAL PRACTICE SHEFFIELD,24908395,"7,379.76 "
Department of Health,NHS Sheffield CCG,30/11/2018,C&M-GMS Cost of Drugs -Prescribing,LOCAL ENHANCED SERVICES,HAROLD STREET MEDICAL CENTRE,24908392,469.55 
Department of Health,NHS Sheffield CCG,30/11/2018,C&M-GMS GP Statutory Levy,PRC DELEGATED CO-COMMISSIONING,HAROLD STREET MEDICAL CENTRE,24908392,0.39 
Department of Health,NHS Sheffield CCG,30/11/2018,C&M-GMS Global Sum,PRC DELEGATED CO-COMMISSIONING,HAROLD STREET MEDICAL CENTRE,24908392,"21,398.19 "
Department of Health,NHS Sheffield CCG,30/11/2018,C&M-GMS PCO Other,PRC DELEGATED CO-COMMISSIONING,HAROLD STREET MEDICAL CENTRE,24908392,138.11 
Department of Health,NHS Sheffield CCG,30/11/2018,C&M-GMS Prem Notional Rent,PRC DELEGATED CO-COMMISSIONING,HAROLD STREET MEDICAL CENTRE,24908392,"4,675.00 "
Department of Health,NHS Sheffield CCG,30/11/2018,C&M-GMS Prof Fees Prescribing,PRC DELEGATED CO-COMMISSIONING,HAROLD STREET MEDICAL CENTRE,24908392,71.30 
Department of Health,NHS Sheffield CCG,30/11/2018,C&M-GMS QOF Aspiration,PRC DELEGATED CO-COMMISSIONING,HAROLD STREET MEDICAL CENTRE,24908392,"2,464.80 "
Department of Health,NHS Sheffield CCG,30/11/2018,C&M-GMS Voluntary Levy,PRC DELEGATED CO-COMMISSIONING,HAROLD STREET MEDICAL CENTRE,24908392,0.07 
Department of Health,NHS Sheffield CCG,30/11/2018,Cont Care-Physical Disab (<65),CHC ADULT FULLY FUNDED,HC ONE LTD,24651313,"36,629.66 "
Department of Health,NHS Sheffield CCG,30/11/2018,C&M-GMS Cost of Drugs -Prescribing,LOCAL ENHANCED SERVICES,HEALTH CARE SURGERY,24908405,"1,282.42 "
Department of Health,NHS Sheffield CCG,30/11/2018,C&M-GMS DES Minor Surgery,PRC DELEGATED CO-COMMISSIONING,HEALTH CARE SURGERY,24908405,160.00 
Department of Health,NHS Sheffield CCG,30/11/2018,C&M-GMS Global Sum,PRC DELEGATED CO-COMMISSIONING,HEALTH CARE SURGERY,24908405,"38,393.63 "
Department of Health,NHS Sheffield CCG,30/11/2018,C&M-GMS MPIG Correction Factor,PRC DELEGATED CO-COMMISSIONING,HEALTH CARE SURGERY,24908405,780.02 
Department of Health,NHS Sheffield CCG,30/11/2018,C&M-GMS PCO Other,PRC DELEGATED CO-COMMISSIONING,HEALTH CARE SURGERY,24908405,373.85 
Department of Health,NHS Sheffield CCG,30/11/2018,C&M-GMS Prem Notional Rent,PRC DELEGATED CO-COMMISSIONING,HEALTH CARE SURGERY,24908405,"3,862.50 "
Department of Health,NHS Sheffield CCG,30/11/2018,C&M-GMS Prem Rates,PRC DELEGATED CO-COMMISSIONING,HEALTH CARE SURGERY,24908405,574.00 
Department of Health,NHS Sheffield CCG,30/11/2018,C&M-GMS Prof Fees Prescribing,PRC DELEGATED CO-COMMISSIONING,HEALTH CARE SURGERY,24908405,287.50 
Department of Health,NHS Sheffield CCG,30/11/2018,C&M-GMS QOF Aspiration,PRC DELEGATED CO-COMMISSIONING,HEALTH CARE SURGERY,24908405,"3,944.28 "
Department of Health,NHS Sheffield CCG,30/11/2018,C&M-GMS Cost of Drugs -Prescribing,LOCAL ENHANCED SERVICES,HEELEY GREEN SURGERY,24908401,"1,028.79 "
Department of Health,NHS Sheffield CCG,30/11/2018,C&M-GMS Global Sum,PRC DELEGATED CO-COMMISSIONING,HEELEY GREEN SURGERY,24908401,"42,556.51 "
Department of Health,NHS Sheffield CCG,30/11/2018,C&M-GMS MPIG Correction Factor,PRC DELEGATED CO-COMMISSIONING,HEELEY GREEN SURGERY,24908401,376.20 
Department of Health,NHS Sheffield CCG,30/11/2018,C&M-GMS Prem Notional Rent,PRC DELEGATED CO-COMMISSIONING,HEELEY GREEN SURGERY,24908401,"3,254.17 "
Department of Health,NHS Sheffield CCG,30/11/2018,C&M-GMS Prof Fees Prescribing,PRC DELEGATED CO-COMMISSIONING,HEELEY GREEN SURGERY,24908401,142.60 
Department of Health,NHS Sheffield CCG,30/11/2018,C&M-GMS QOF Aspiration,PRC DELEGATED CO-COMMISSIONING,HEELEY GREEN SURGERY,24908401,"4,672.20 "
Department of Health,NHS Sheffield CCG,30/11/2018,C&M-GMS Cost of Drugs -Prescribing,LOCAL ENHANCED SERVICES,HOLLIES MEDICAL CENTRE,24908403,"2,390.48 "
Department of Health,NHS Sheffield CCG,30/11/2018,C&M-GMS DES Minor Surgery,PRC DELEGATED CO-COMMISSIONING,HOLLIES MEDICAL CENTRE,24908403,900.00 
Department of Health,NHS Sheffield CCG,30/11/2018,C&M-GMS Global Sum,PRC DELEGATED CO-COMMISSIONING,HOLLIES MEDICAL CENTRE,24908403,"58,468.27 "
Department of Health,NHS Sheffield CCG,30/11/2018,C&M-GMS MPIG Correction Factor,PRC DELEGATED CO-COMMISSIONING,HOLLIES MEDICAL CENTRE,24908403,"1,452.73 "
Department of Health,NHS Sheffield CCG,30/11/2018,C&M-GMS PCO Other,PRC DELEGATED CO-COMMISSIONING,HOLLIES MEDICAL CENTRE,24908403,623.72 
Department of Health,NHS Sheffield CCG,30/11/2018,C&M-GMS Prem Notional Rent,PRC DELEGATED CO-COMMISSIONING,HOLLIES MEDICAL CENTRE,24908403,"3,229.17 "
Department of Health,NHS Sheffield CCG,30/11/2018,C&M-GMS Prem Rates,PRC DELEGATED CO-COMMISSIONING,HOLLIES MEDICAL CENTRE,24908403,"1,224.00 "
Department of Health,NHS Sheffield CCG,30/11/2018,C&M-GMS Prof Fees Prescribing,PRC DELEGATED CO-COMMISSIONING,HOLLIES MEDICAL CENTRE,24908403,312.80 
Department of Health,NHS Sheffield CCG,30/11/2018,C&M-GMS QOF Aspiration,PRC DELEGATED CO-COMMISSIONING,HOLLIES MEDICAL CENTRE,24908403,"6,440.45 "
Department of Health,NHS Sheffield CCG,30/11/2018,Cont Care-Physical Disab (<65),CHC ADULT FULLY FUNDED,HORIZON CARE HOMES LTD,24651288,"37,595.27 "
Department of Health,NHS Sheffield CCG,30/11/2018,Cont Care-Physical Disab (<65),CHC ADULT FULLY FUNDED,HORIZON CARE HOMES LTD,24651289,"29,993.90 "
Department of Health,NHS Sheffield CCG,30/11/2018,Cont Care-Physical Disab (<65),CHC ADULT FULLY FUNDED,HORIZON CARE HOMES LTD,24651308,"32,194.16 "
Department of Health,NHS Sheffield CCG,30/11/2018,Cont Care-Physical Disab (65+),CHC ADULT FULLY FUNDED,HORIZON CARE HOMES LTD,24711778,"51,428.57 "
Department of Health,NHS Sheffield CCG,30/11/2018,C&M-PMS Contract Value,PRC DELEGATED CO-COMMISSIONING,JAUNTY SPRINGS HEALTH CENTRE,24668573,"31,017.52 "
Department of Health,NHS Sheffield CCG,30/11/2018,C&M-PMS DES Learn Dsblty Hlth Chk,PRC DELEGATED CO-COMMISSIONING,JAUNTY SPRINGS HEALTH CENTRE,24668573,420.00 
Department of Health,NHS Sheffield CCG,30/11/2018,C&M-PMS DES Minor Surgery,PRC DELEGATED CO-COMMISSIONING,JAUNTY SPRINGS HEALTH CENTRE,24668573,480.00 
Department of Health,NHS Sheffield CCG,30/11/2018,C&M-PMS PCO Other,PRC DELEGATED CO-COMMISSIONING,JAUNTY SPRINGS HEALTH CENTRE,24668573,284.89 
Department of Health,NHS Sheffield CCG,30/11/2018,C&M-PMS Prem Notional Rent,PRC DELEGATED CO-COMMISSIONING,JAUNTY SPRINGS HEALTH CENTRE,24668573,"3,208.33 "
Department of Health,NHS Sheffield CCG,30/11/2018,C&M-PMS Prem Rates,PRC DELEGATED CO-COMMISSIONING,JAUNTY SPRINGS HEALTH CENTRE,24668573,631.00 
Department of Health,NHS Sheffield CCG,30/11/2018,C&M-PMS QOF Aspiration,PRC DELEGATED CO-COMMISSIONING,JAUNTY SPRINGS HEALTH CENTRE,24668573,"3,861.25 "
Department of Health,NHS Sheffield CCG,30/11/2018,C&M-GMS IT Comm Servs -GP Practices,PRIMARY CARE IT,KIER BUSINESS SERVICES LTD,24615916,"103,393.20 "
Department of Health,NHS Sheffield CCG,30/11/2018,FM Computer Contracts,BUSINESS INFORMATICS,KIER BUSINESS SERVICES LTD,24615916,"36,933.60 "
Department of Health,NHS Sheffield CCG,30/11/2018,C&M-GMS LES Translation Fees,INTERPRETING SERVICES,LANGUAGELINE SOLUTIONS,24812279,"33,540.00 "
Department of Health,NHS Sheffield CCG,30/11/2018,C&M-GMS LES Translation Fees,INTERPRETING SERVICES,LANGUAGELINE SOLUTIONS,24812285,"41,229.96 "
Department of Health,NHS Sheffield CCG,30/11/2018,Hcare Srv Rec NHS Trust-Contract Baseline,ACUTE COMMISSIONING,LEEDS TEACHING HOSPITALS NHS TRUST,24572252,"69,921.98 "
Department of Health,NHS Sheffield CCG,30/11/2018,Hcare Srv Rec NHS Trust-Contract Baseline,ACUTE COMMISSIONING,LEEDS TEACHING HOSPITALS NHS TRUST,24632317,"44,759.00 "
Department of Health,NHS Sheffield CCG,30/11/2018,Cont Care-Physical Disab (<65),CHC ADULT FULLY FUNDED,LONGLEY HEALTH CARE LTD,24632439,"72,467.51 "
Department of Health,NHS Sheffield CCG,30/11/2018,Cont Care-Physical Disab (<65),CHC ADULT FULLY FUNDED,LOXLEY HEALTH CARE LTD,24632444,"69,452.99 "
Department of Health,NHS Sheffield CCG,30/11/2018,C&M-APMS LES Basket of Procedures,LOCAL ENHANCED SERVICES,MANCHESTER ROAD SURGERY SHEFFIELD,24615929,"26,250.00 "
Department of Health,NHS Sheffield CCG,30/11/2018,C&M-PMS Contract Value,PRC DELEGATED CO-COMMISSIONING,MANCHESTER ROAD SURGERY SHEFFIELD,24668577,"32,885.32 "
Department of Health,NHS Sheffield CCG,30/11/2018,C&M-PMS DES Minor Surgery,PRC DELEGATED CO-COMMISSIONING,MANCHESTER ROAD SURGERY SHEFFIELD,24668577,"1,395.00 "
Department of Health,NHS Sheffield CCG,30/11/2018,C&M-PMS Prem Cost Rent,PRC DELEGATED CO-COMMISSIONING,MANCHESTER ROAD SURGERY SHEFFIELD,24668577,"3,472.17 "
Department of Health,NHS Sheffield CCG,30/11/2018,C&M-PMS Prem Notional Rent,PRC DELEGATED CO-COMMISSIONING,MANCHESTER ROAD SURGERY SHEFFIELD,24668577,442.92 
Department of Health,NHS Sheffield CCG,30/11/2018,C&M-PMS Prem Rates,PRC DELEGATED CO-COMMISSIONING,MANCHESTER ROAD SURGERY SHEFFIELD,24668577,948.00 
Department of Health,NHS Sheffield CCG,30/11/2018,C&M-PMS QOF Aspiration,PRC DELEGATED CO-COMMISSIONING,MANCHESTER ROAD SURGERY SHEFFIELD,24668577,"4,036.85 "
Department of Health,NHS Sheffield CCG,30/11/2018,C&M-PMS Contract Value,PRC DELEGATED CO-COMMISSIONING,MANOR & PARK GROUP PRACTICE,24670512,"76,837.91 "
Department of Health,NHS Sheffield CCG,30/11/2018,C&M-PMS Out of Hours Opt Outs,PRC DELEGATED CO-COMMISSIONING,MANOR & PARK GROUP PRACTICE,24670512,76.79 
Department of Health,NHS Sheffield CCG,30/11/2018,C&M-PMS Prem Notional Rent,PRC DELEGATED CO-COMMISSIONING,MANOR & PARK GROUP PRACTICE,24670512,"9,050.00 "
Department of Health,NHS Sheffield CCG,30/11/2018,C&M-PMS Prem Rates,PRC DELEGATED CO-COMMISSIONING,MANOR & PARK GROUP PRACTICE,24670512,975.00 
Department of Health,NHS Sheffield CCG,30/11/2018,C&M-PMS QOF Aspiration,PRC DELEGATED CO-COMMISSIONING,MANOR & PARK GROUP PRACTICE,24670512,"7,862.89 "
Department of Health,NHS Sheffield CCG,30/11/2018,C&M-GMS Cost of Drugs -Prescribing,LOCAL ENHANCED SERVICES,MATHEWS PRACTICE,24908413,314.89 
Department of Health,NHS Sheffield CCG,30/11/2018,C&M-GMS GP Statutory Levy,PRC DELEGATED CO-COMMISSIONING,MATHEWS PRACTICE,24908413,5.28 
Department of Health,NHS Sheffield CCG,30/11/2018,C&M-GMS Global Sum,PRC DELEGATED CO-COMMISSIONING,MATHEWS PRACTICE,24908413,"62,858.59 "
Department of Health,NHS Sheffield CCG,30/11/2018,C&M-GMS MPIG Correction Factor,PRC DELEGATED CO-COMMISSIONING,MATHEWS PRACTICE,24908413,598.96 
Department of Health,NHS Sheffield CCG,30/11/2018,C&M-GMS PCO Locum Adop/Pat/Mat,PRC DELEGATED CO-COMMISSIONING,MATHEWS PRACTICE,24908413,"11,069.29 "
Department of Health,NHS Sheffield CCG,30/11/2018,C&M-GMS Prem Notional Rent,PRC DELEGATED CO-COMMISSIONING,MATHEWS PRACTICE,24908413,"8,660.42 "
Department of Health,NHS Sheffield CCG,30/11/2018,C&M-GMS Prem Rates,PRC DELEGATED CO-COMMISSIONING,MATHEWS PRACTICE,24908413,"1,962.00 "
Department of Health,NHS Sheffield CCG,30/11/2018,C&M-GMS Prof Fees Prescribing,PRC DELEGATED CO-COMMISSIONING,MATHEWS PRACTICE,24908413,124.20 
Department of Health,NHS Sheffield CCG,30/11/2018,C&M-GMS QOF Aspiration,PRC DELEGATED CO-COMMISSIONING,MATHEWS PRACTICE,24908413,"7,748.47 "
Department of Health,NHS Sheffield CCG,30/11/2018,C&M-GMS Voluntary Levy,PRC DELEGATED CO-COMMISSIONING,MATHEWS PRACTICE,24908413,0.88 
Department of Health,NHS Sheffield CCG,30/11/2018,C&M-PMS Contract Value,PRC DELEGATED CO-COMMISSIONING,MEADOWHEAD GROUP PRACTICE,24668575,"77,318.95 "
Department of Health,NHS Sheffield CCG,30/11/2018,C&M-PMS DES Minor Surgery,PRC DELEGATED CO-COMMISSIONING,MEADOWHEAD GROUP PRACTICE,24668575,"1,420.00 "
Department of Health,NHS Sheffield CCG,30/11/2018,C&M-PMS Out of Hours Opt Outs,PRC DELEGATED CO-COMMISSIONING,MEADOWHEAD GROUP PRACTICE,24668575,176.63 
Department of Health,NHS Sheffield CCG,30/11/2018,C&M-PMS Prem Cost Rent,PRC DELEGATED CO-COMMISSIONING,MEADOWHEAD GROUP PRACTICE,24668575,"3,647.42 "
Department of Health,NHS Sheffield CCG,30/11/2018,C&M-PMS Prem Notional Rent,PRC DELEGATED CO-COMMISSIONING,MEADOWHEAD GROUP PRACTICE,24668575,"3,358.33 "
Department of Health,NHS Sheffield CCG,30/11/2018,C&M-PMS Prem Rates,PRC DELEGATED CO-COMMISSIONING,MEADOWHEAD GROUP PRACTICE,24668575,"1,788.00 "
Department of Health,NHS Sheffield CCG,30/11/2018,C&M-PMS Prem Water Rates,PRC DELEGATED CO-COMMISSIONING,MEADOWHEAD GROUP PRACTICE,24668575,198.31 
Department of Health,NHS Sheffield CCG,30/11/2018,C&M-PMS QOF Aspiration,PRC DELEGATED CO-COMMISSIONING,MEADOWHEAD GROUP PRACTICE,24668575,"9,134.83 "
Department of Health,NHS Sheffield CCG,30/11/2018,C&M-GMS Cost of Drugs -Prescribing,LOCAL ENHANCED SERVICES,MEDICAL CENTRE CRYSTAL PEAKS,24908409,"3,781.54 "
Department of Health,NHS Sheffield CCG,30/11/2018,C&M-GMS DES Learn Dsblty Hlth Chk,PRC DELEGATED CO-COMMISSIONING,MEDICAL CENTRE CRYSTAL PEAKS,24908409,420.00 
Department of Health,NHS Sheffield CCG,30/11/2018,C&M-GMS DES Minor Surgery,PRC DELEGATED CO-COMMISSIONING,MEDICAL CENTRE CRYSTAL PEAKS,24908409,"4,065.00 "
Department of Health,NHS Sheffield CCG,30/11/2018,C&M-GMS GP Statutory Levy,PRC DELEGATED CO-COMMISSIONING,MEDICAL CENTRE CRYSTAL PEAKS,24908409,154.14 
Department of Health,NHS Sheffield CCG,30/11/2018,C&M-GMS Global Sum,PRC DELEGATED CO-COMMISSIONING,MEDICAL CENTRE CRYSTAL PEAKS,24908409,"45,920.89 "
Department of Health,NHS Sheffield CCG,30/11/2018,C&M-GMS MPIG Correction Factor,PRC DELEGATED CO-COMMISSIONING,MEDICAL CENTRE CRYSTAL PEAKS,24908409,"1,131.34 "
Department of Health,NHS Sheffield CCG,30/11/2018,C&M-GMS PCO Other,PRC DELEGATED CO-COMMISSIONING,MEDICAL CENTRE CRYSTAL PEAKS,24908409,474.67 
Department of Health,NHS Sheffield CCG,30/11/2018,C&M-GMS Prem Notional Rent,PRC DELEGATED CO-COMMISSIONING,MEDICAL CENTRE CRYSTAL PEAKS,24908409,270.00 
Department of Health,NHS Sheffield CCG,30/11/2018,C&M-GMS Prem Rates,PRC DELEGATED CO-COMMISSIONING,MEDICAL CENTRE CRYSTAL PEAKS,24908409,977.00 
Department of Health,NHS Sheffield CCG,30/11/2018,C&M-GMS Prof Fees Prescribing,PRC DELEGATED CO-COMMISSIONING,MEDICAL CENTRE CRYSTAL PEAKS,24908409,"1,051.10 "
Department of Health,NHS Sheffield CCG,30/11/2018,C&M-GMS QOF Aspiration,PRC DELEGATED CO-COMMISSIONING,MEDICAL CENTRE CRYSTAL PEAKS,24908409,"6,363.66 "
Department of Health,NHS Sheffield CCG,30/11/2018,C&M-GMS Voluntary Levy,PRC DELEGATED CO-COMMISSIONING,MEDICAL CENTRE CRYSTAL PEAKS,24908409,25.69 
Department of Health,NHS Sheffield CCG,30/11/2018,C&M-GMS Cost of Drugs -Prescribing,LOCAL ENHANCED SERVICES,MILL ROAD SURGERY SHEFFIELD,24908416,"5,651.47 "
Department of Health,NHS Sheffield CCG,30/11/2018,C&M-GMS DES Learn Dsblty Hlth Chk,PRC DELEGATED CO-COMMISSIONING,MILL ROAD SURGERY SHEFFIELD,24908416,280.00 
Department of Health,NHS Sheffield CCG,30/11/2018,C&M-GMS DES Minor Surgery,PRC DELEGATED CO-COMMISSIONING,MILL ROAD SURGERY SHEFFIELD,24908416,"1,415.00 "
Department of Health,NHS Sheffield CCG,30/11/2018,C&M-GMS Global Sum,PRC DELEGATED CO-COMMISSIONING,MILL ROAD SURGERY SHEFFIELD,24908416,"40,769.31 "
Department of Health,NHS Sheffield CCG,30/11/2018,C&M-GMS MPIG Correction Factor,PRC DELEGATED CO-COMMISSIONING,MILL ROAD SURGERY SHEFFIELD,24908416,122.04 
Department of Health,NHS Sheffield CCG,30/11/2018,C&M-GMS PCO Other,PRC DELEGATED CO-COMMISSIONING,MILL ROAD SURGERY SHEFFIELD,24908416,389.44 
Department of Health,NHS Sheffield CCG,30/11/2018,C&M-GMS Prem Notional Rent,PRC DELEGATED CO-COMMISSIONING,MILL ROAD SURGERY SHEFFIELD,24908416,"4,593.33 "
Department of Health,NHS Sheffield CCG,30/11/2018,C&M-GMS Prem Rates,PRC DELEGATED CO-COMMISSIONING,MILL ROAD SURGERY SHEFFIELD,24908416,972.00 
Department of Health,NHS Sheffield CCG,30/11/2018,C&M-GMS Prof Fees Prescribing,PRC DELEGATED CO-COMMISSIONING,MILL ROAD SURGERY SHEFFIELD,24908416,"1,209.80 "
Department of Health,NHS Sheffield CCG,30/11/2018,C&M-GMS QOF Aspiration,PRC DELEGATED CO-COMMISSIONING,MILL ROAD SURGERY SHEFFIELD,24908416,"4,960.33 "
Department of Health,NHS Sheffield CCG,30/11/2018,Clinical&Medical-Independent Sector,Mental Health Services - S117 Mental Health,MOORVILLE RESIDENTIAL,24953758,"8,124.30 "
Department of Health,NHS Sheffield CCG,30/11/2018,Cont Care-Learning Disab(<65),CHC ADULT FULLY FUNDED,MOORVILLE RESIDENTIAL,24953758,"20,005.05 "
Department of Health,NHS Sheffield CCG,30/11/2018,Cont Care-Learning Disab(<65),CHC ADULT JOINT FUNDED,MOORVILLE RESIDENTIAL,24953758,"1,704.30 "
Department of Health,NHS Sheffield CCG,30/11/2018,C&M-PMS Contract Value,PRC DELEGATED CO-COMMISSIONING,MOSBOROUGH HEALTH CENTRE,24668579,"48,796.61 "
Department of Health,NHS Sheffield CCG,30/11/2018,C&M-PMS DES Learn Dsblty Hlth Chk,PRC DELEGATED CO-COMMISSIONING,MOSBOROUGH HEALTH CENTRE,24668579,420.00 
Department of Health,NHS Sheffield CCG,30/11/2018,C&M-PMS DES Minor Surgery,PRC DELEGATED CO-COMMISSIONING,MOSBOROUGH HEALTH CENTRE,24668579,"1,000.00 "
Department of Health,NHS Sheffield CCG,30/11/2018,C&M-PMS PCO Other,PRC DELEGATED CO-COMMISSIONING,MOSBOROUGH HEALTH CENTRE,24668579,471.11 
Department of Health,NHS Sheffield CCG,30/11/2018,C&M-PMS Prem Notional Rent,PRC DELEGATED CO-COMMISSIONING,MOSBOROUGH HEALTH CENTRE,24668579,"4,091.67 "
Department of Health,NHS Sheffield CCG,30/11/2018,C&M-PMS Prem Rates,PRC DELEGATED CO-COMMISSIONING,MOSBOROUGH HEALTH CENTRE,24668579,891.00 
Department of Health,NHS Sheffield CCG,30/11/2018,C&M-PMS Prem Water Rates,PRC DELEGATED CO-COMMISSIONING,MOSBOROUGH HEALTH CENTRE,24668579,66.34 
Department of Health,NHS Sheffield CCG,30/11/2018,C&M-PMS QOF Aspiration,PRC DELEGATED CO-COMMISSIONING,MOSBOROUGH HEALTH CENTRE,24668579,"5,763.82 "
Department of Health,NHS Sheffield CCG,30/11/2018,Other Gen Supplies & Srv,CLINICAL LEADS,NDVA,24838733,"37,250.00 "
Department of Health,NHS Sheffield CCG,30/11/2018,C&M-PMS Contract Value,PRC DELEGATED CO-COMMISSIONING,NETHERGREEN SURGERY,24668581,"64,098.25 "
Department of Health,NHS Sheffield CCG,30/11/2018,C&M-PMS DES Minor Surgery,PRC DELEGATED CO-COMMISSIONING,NETHERGREEN SURGERY,24668581,880.00 
Department of Health,NHS Sheffield CCG,30/11/2018,C&M-PMS Prem Cost Rent,PRC DELEGATED CO-COMMISSIONING,NETHERGREEN SURGERY,24668581,"5,057.33 "
Department of Health,NHS Sheffield CCG,30/11/2018,C&M-PMS Prem Rates,PRC DELEGATED CO-COMMISSIONING,NETHERGREEN SURGERY,24668581,"1,236.00 "
Department of Health,NHS Sheffield CCG,30/11/2018,C&M-PMS QOF Aspiration,PRC DELEGATED CO-COMMISSIONING,NETHERGREEN SURGERY,24668581,"6,267.38 "
Department of Health,NHS Sheffield CCG,30/11/2018,Other Gen Supplies & Srv,BEREAVEMENT SERVICE,NHS BARNSLEY CCG,24855938,"78,167.00 "
Department of Health,NHS Sheffield CCG,30/11/2018,Other Gen Supplies & Srv,BEREAVEMENT SERVICE,NHS BARNSLEY CCG,24855939,"(78,167.00)"
Department of Health,NHS Sheffield CCG,30/11/2018,C&M-GMS Prem Other,PRC DELEGATED CO-COMMISSIONING,NHS ENGLAND,24572236,"1,389.70 "
Department of Health,NHS Sheffield CCG,30/11/2018,Contract- Refuse & Clinical Waste,PRC DELEGATED CO-COMMISSIONING,NHS ENGLAND,24572236,"68,747.50 "
Department of Health,NHS Sheffield CCG,30/11/2018,Other Gen Supplies & Srv,PRC DELEGATED CO-COMMISSIONING,NHS ENGLAND,24572236,"43,549.00 "
Department of Health,NHS Sheffield CCG,30/11/2018,Charges from CSU,BUSINESS INFORMATICS,NHS NORTH OF ENGLAND CSU,24867681,"30,083.00 "
Department of Health,NHS Sheffield CCG,30/11/2018,C&M-GMS Cost of Drugs -Prescribing,LOCAL ENHANCED SERVICES,NORFOLK PARK HEALTH CENTRE,24908421,631.01 
Department of Health,NHS Sheffield CCG,30/11/2018,C&M-GMS DES Learn Dsblty Hlth Chk,PRC DELEGATED CO-COMMISSIONING,NORFOLK PARK HEALTH CENTRE,24908421,280.00 
Department of Health,NHS Sheffield CCG,30/11/2018,C&M-GMS DES Minor Surgery,PRC DELEGATED CO-COMMISSIONING,NORFOLK PARK HEALTH CENTRE,24908421,"1,190.00 "
Department of Health,NHS Sheffield CCG,30/11/2018,C&M-GMS Global Sum,PRC DELEGATED CO-COMMISSIONING,NORFOLK PARK HEALTH CENTRE,24908421,"37,687.75 "
Department of Health,NHS Sheffield CCG,30/11/2018,C&M-GMS MPIG Correction Factor,PRC DELEGATED CO-COMMISSIONING,NORFOLK PARK HEALTH CENTRE,24908421,924.61 
Department of Health,NHS Sheffield CCG,30/11/2018,C&M-GMS Prem Healthcentre Rent,PRC DELEGATED CO-COMMISSIONING,NORFOLK PARK HEALTH CENTRE,24908421,"24,044.86 "
Department of Health,NHS Sheffield CCG,30/11/2018,C&M-GMS Prof Fees Prescribing,PRC DELEGATED CO-COMMISSIONING,NORFOLK PARK HEALTH CENTRE,24908421,110.40 
Department of Health,NHS Sheffield CCG,30/11/2018,C&M-GMS QOF Aspiration,PRC DELEGATED CO-COMMISSIONING,NORFOLK PARK HEALTH CENTRE,24908421,"3,810.65 "
Department of Health,NHS Sheffield CCG,30/11/2018,C&M-GMS Cost of Drugs -Prescribing,LOCAL ENHANCED SERVICES,NORWOOD MEDICAL CENTRE SHEFFIELD,24908424,"4,736.99 "
Department of Health,NHS Sheffield CCG,30/11/2018,C&M-GMS DES Minor Surgery,PRC DELEGATED CO-COMMISSIONING,NORWOOD MEDICAL CENTRE SHEFFIELD,24908424,"2,215.00 "
Department of Health,NHS Sheffield CCG,30/11/2018,C&M-GMS GP Statutory Levy,PRC DELEGATED CO-COMMISSIONING,NORWOOD MEDICAL CENTRE SHEFFIELD,24908424,0.18 
Department of Health,NHS Sheffield CCG,30/11/2018,C&M-GMS Global Sum,PRC DELEGATED CO-COMMISSIONING,NORWOOD MEDICAL CENTRE SHEFFIELD,24908424,"64,743.93 "
Department of Health,NHS Sheffield CCG,30/11/2018,C&M-GMS PCO Other,PRC DELEGATED CO-COMMISSIONING,NORWOOD MEDICAL CENTRE SHEFFIELD,24908424,559.17 
Department of Health,NHS Sheffield CCG,30/11/2018,C&M-GMS Prem Notional Rent,PRC DELEGATED CO-COMMISSIONING,NORWOOD MEDICAL CENTRE SHEFFIELD,24908424,"5,187.50 "
Department of Health,NHS Sheffield CCG,30/11/2018,C&M-GMS Prem Water Rates,PRC DELEGATED CO-COMMISSIONING,NORWOOD MEDICAL CENTRE SHEFFIELD,24908424,252.97 
Department of Health,NHS Sheffield CCG,30/11/2018,C&M-GMS Prof Fees Prescribing,PRC DELEGATED CO-COMMISSIONING,NORWOOD MEDICAL CENTRE SHEFFIELD,24908424,"1,233.77 "
Department of Health,NHS Sheffield CCG,30/11/2018,C&M-GMS QOF Aspiration,PRC DELEGATED CO-COMMISSIONING,NORWOOD MEDICAL CENTRE SHEFFIELD,24908424,"8,350.37 "
Department of Health,NHS Sheffield CCG,30/11/2018,C&M-GMS Voluntary Levy,PRC DELEGATED CO-COMMISSIONING,NORWOOD MEDICAL CENTRE SHEFFIELD,24908424,0.03 
Department of Health,NHS Sheffield CCG,30/11/2018,Hcare Srv Rec NHS Trust-Contract Baseline,ACUTE COMMISSIONING,NOTTINGHAM UNIVERSITY HOSPITALS NHS TRUST,24867632,"28,040.00 "
Department of Health,NHS Sheffield CCG,30/11/2018,Clinical&Medical-Independent Sector,ACUTE COMMISSIONING,ONEHEALTH GROUP,24711566,"74,162.00 "
Department of Health,NHS Sheffield CCG,30/11/2018,C&M-GMS Cost of Drugs -Dispensing,LOCAL ENHANCED SERVICES,OUGHTIBRIDGE SURGERY,24908427,"(15,837.32)"
Department of Health,NHS Sheffield CCG,30/11/2018,C&M-GMS GP Statutory Levy,PRC DELEGATED CO-COMMISSIONING,OUGHTIBRIDGE SURGERY,24908427,(174.84)
Department of Health,NHS Sheffield CCG,30/11/2018,C&M-GMS PrscChrgsCll&RmttdbyGPCntra,PRC DELEGATED CO-COMMISSIONING,OUGHTIBRIDGE SURGERY,24908427,(528.00)
Department of Health,NHS Sheffield CCG,30/11/2018,C&M-GMS Voluntary Levy,PRC DELEGATED CO-COMMISSIONING,OUGHTIBRIDGE SURGERY,24908427,(29.14)
Department of Health,NHS Sheffield CCG,30/11/2018,C&M-GMS Cost of Drugs -Dispensing,LOCAL ENHANCED SERVICES,OUGHTIBRIDGE SURGERY,24908428,"37,158.00 "
Department of Health,NHS Sheffield CCG,30/11/2018,C&M-GMS DES Minor Surgery,PRC DELEGATED CO-COMMISSIONING,OUGHTIBRIDGE SURGERY,24908428,440.00 
Department of Health,NHS Sheffield CCG,30/11/2018,C&M-GMS GP Statutory Levy,PRC DELEGATED CO-COMMISSIONING,OUGHTIBRIDGE SURGERY,24908428,0.18 
Department of Health,NHS Sheffield CCG,30/11/2018,C&M-GMS Global Sum,PRC DELEGATED CO-COMMISSIONING,OUGHTIBRIDGE SURGERY,24908428,"43,039.08 "
Department of Health,NHS Sheffield CCG,30/11/2018,C&M-GMS Prem Notional Rent,PRC DELEGATED CO-COMMISSIONING,OUGHTIBRIDGE SURGERY,24908428,"3,957.33 "
Department of Health,NHS Sheffield CCG,30/11/2018,C&M-GMS Prem Rates,PRC DELEGATED CO-COMMISSIONING,OUGHTIBRIDGE SURGERY,24908428,976.00 
Department of Health,NHS Sheffield CCG,30/11/2018,C&M-GMS Prof Fees Dispensing,PRC DELEGATED CO-COMMISSIONING,OUGHTIBRIDGE SURGERY,24908428,"4,765.84 "
Department of Health,NHS Sheffield CCG,30/11/2018,C&M-GMS PrscrptnChrgsColl&RmttdbyGP,LOCAL ENHANCED SERVICES,OUGHTIBRIDGE SURGERY,24908428,528.00 
Department of Health,NHS Sheffield CCG,30/11/2018,C&M-GMS QOF Aspiration,PRC DELEGATED CO-COMMISSIONING,OUGHTIBRIDGE SURGERY,24908428,"4,454.94 "
Department of Health,NHS Sheffield CCG,30/11/2018,C&M-GMS Voluntary Levy,PRC DELEGATED CO-COMMISSIONING,OUGHTIBRIDGE SURGERY,24908428,0.03 
Department of Health,NHS Sheffield CCG,30/11/2018,C&M-PMS Contract Value,PRC DELEGATED CO-COMMISSIONING,OWLTHORPE MEDICAL CENTRE,24668583,"33,565.48 "
Department of Health,NHS Sheffield CCG,30/11/2018,C&M-PMS Out of Hours Opt Outs,PRC DELEGATED CO-COMMISSIONING,OWLTHORPE MEDICAL CENTRE,24668583,14.14 
Department of Health,NHS Sheffield CCG,30/11/2018,C&M-PMS Prem Actual Rent,PRC DELEGATED CO-COMMISSIONING,OWLTHORPE MEDICAL CENTRE,24668583,"7,539.58 "
Department of Health,NHS Sheffield CCG,30/11/2018,C&M-PMS QOF Aspiration,PRC DELEGATED CO-COMMISSIONING,OWLTHORPE MEDICAL CENTRE,24668583,"4,022.05 "
Department of Health,NHS Sheffield CCG,30/11/2018,C&M-PMS Contract Value,PRC DELEGATED CO-COMMISSIONING,PAGE HALL MEDICAL CENTRE,24668585,"57,897.11 "
Department of Health,NHS Sheffield CCG,30/11/2018,C&M-PMS DES Learn Dsblty Hlth Chk,PRC DELEGATED CO-COMMISSIONING,PAGE HALL MEDICAL CENTRE,24668585,700.00 
Department of Health,NHS Sheffield CCG,30/11/2018,C&M-PMS DES Minor Surgery,PRC DELEGATED CO-COMMISSIONING,PAGE HALL MEDICAL CENTRE,24668585,320.00 
Department of Health,NHS Sheffield CCG,30/11/2018,C&M-PMS PCO Locum Adop/Pat/Mat,PRC DELEGATED CO-COMMISSIONING,PAGE HALL MEDICAL CENTRE,24668585,"15,982.04 "
Department of Health,NHS Sheffield CCG,30/11/2018,C&M-PMS PCO Other,PRC DELEGATED CO-COMMISSIONING,PAGE HALL MEDICAL CENTRE,24668585,535.50 
Department of Health,NHS Sheffield CCG,30/11/2018,C&M-PMS Prem Notional Rent,PRC DELEGATED CO-COMMISSIONING,PAGE HALL MEDICAL CENTRE,24668585,"4,833.33 "
Department of Health,NHS Sheffield CCG,30/11/2018,C&M-PMS Prem Rates,PRC DELEGATED CO-COMMISSIONING,PAGE HALL MEDICAL CENTRE,24668585,"1,076.33 "
Department of Health,NHS Sheffield CCG,30/11/2018,C&M-PMS QOF Aspiration,PRC DELEGATED CO-COMMISSIONING,PAGE HALL MEDICAL CENTRE,24668585,"4,906.36 "
Department of Health,NHS Sheffield CCG,30/11/2018,C&M-PMS Contract Value,PRC DELEGATED CO-COMMISSIONING,PITSMOOR SURGERY,24668587,"78,278.90 "
Department of Health,NHS Sheffield CCG,30/11/2018,C&M-PMS DES Learn Dsblty Hlth Chk,PRC DELEGATED CO-COMMISSIONING,PITSMOOR SURGERY,24668587,"1,680.00 "
Department of Health,NHS Sheffield CCG,30/11/2018,C&M-PMS DES Minor Surgery,PRC DELEGATED CO-COMMISSIONING,PITSMOOR SURGERY,24668587,"1,680.00 "
Department of Health,NHS Sheffield CCG,30/11/2018,C&M-PMS Out of Hours Opt Outs,PRC DELEGATED CO-COMMISSIONING,PITSMOOR SURGERY,24668587,17.00 
Department of Health,NHS Sheffield CCG,30/11/2018,C&M-PMS Prem Notional Rent,PRC DELEGATED CO-COMMISSIONING,PITSMOOR SURGERY,24668587,"9,650.00 "
Department of Health,NHS Sheffield CCG,30/11/2018,C&M-PMS Prem Rates,PRC DELEGATED CO-COMMISSIONING,PITSMOOR SURGERY,24668587,"2,154.00 "
Department of Health,NHS Sheffield CCG,30/11/2018,C&M-PMS QOF Aspiration,PRC DELEGATED CO-COMMISSIONING,PITSMOOR SURGERY,24668587,"7,079.26 "
Department of Health,NHS Sheffield CCG,30/11/2018,C&M-PMS Contract Value,PRC DELEGATED CO-COMMISSIONING,PORTER BROOK MEDICAL CENTRE,24668588,"(8,499.33)"
Department of Health,NHS Sheffield CCG,30/11/2018,C&M-PMS GP Statutory Levy,PRC DELEGATED CO-COMMISSIONING,PORTER BROOK MEDICAL CENTRE,24668588,(889.50)
Department of Health,NHS Sheffield CCG,30/11/2018,C&M-PMS Out of Hours Opt Outs,PRC DELEGATED CO-COMMISSIONING,PORTER BROOK MEDICAL CENTRE,24668588,"(8,843.11)"
Department of Health,NHS Sheffield CCG,30/11/2018,C&M-PMS Voluntary Levy,PRC DELEGATED CO-COMMISSIONING,PORTER BROOK MEDICAL CENTRE,24668588,(148.25)
Department of Health,NHS Sheffield CCG,30/11/2018,C&M-PMS Contract Value,PRC DELEGATED CO-COMMISSIONING,PORTER BROOK MEDICAL CENTRE,24668589,"187,508.17 "
Department of Health,NHS Sheffield CCG,30/11/2018,C&M-PMS DES Minor Surgery,PRC DELEGATED CO-COMMISSIONING,PORTER BROOK MEDICAL CENTRE,24668589,"4,435.00 "
Department of Health,NHS Sheffield CCG,30/11/2018,C&M-PMS Out of Hours Opt Outs,PRC DELEGATED CO-COMMISSIONING,PORTER BROOK MEDICAL CENTRE,24668589,417.96 
Department of Health,NHS Sheffield CCG,30/11/2018,C&M-PMS PCO Other,PRC DELEGATED CO-COMMISSIONING,PORTER BROOK MEDICAL CENTRE,24668589,"1,902.44 "
Department of Health,NHS Sheffield CCG,30/11/2018,C&M-PMS Prem Actual Rent,PRC DELEGATED CO-COMMISSIONING,PORTER BROOK MEDICAL CENTRE,24668589,"1,333.33 "
Department of Health,NHS Sheffield CCG,30/11/2018,C&M-PMS Prem Notional Rent,PRC DELEGATED CO-COMMISSIONING,PORTER BROOK MEDICAL CENTRE,24668589,"9,666.67 "
Department of Health,NHS Sheffield CCG,30/11/2018,C&M-PMS Prem Rates,PRC DELEGATED CO-COMMISSIONING,PORTER BROOK MEDICAL CENTRE,24668589,"2,315.00 "
Department of Health,NHS Sheffield CCG,30/11/2018,C&M-PMS QOF Aspiration,PRC DELEGATED CO-COMMISSIONING,PORTER BROOK MEDICAL CENTRE,24668589,"8,562.06 "
Department of Health,NHS Sheffield CCG,30/11/2018,C&M-APMS DES Extended Hours Access,GP FORWARD VIEW,PRIMARY CARE SHEFFIELD LTD,24723361,"291,333.33 "
Department of Health,NHS Sheffield CCG,30/11/2018,C&M-OES Childrens Schemes,LOCAL ENHANCED SERVICES,PRIMARY EYECARE SERVICES LTD,24812441,375.00 
Department of Health,NHS Sheffield CCG,30/11/2018,C&M-OES Glaucoma,LOCAL ENHANCED SERVICES,PRIMARY EYECARE SERVICES LTD,24812441,665.00 
Department of Health,NHS Sheffield CCG,30/11/2018,C&M-OES Intra-ocular Ocular Hypertn,LOCAL ENHANCED SERVICES,PRIMARY EYECARE SERVICES LTD,24812441,240.00 
Department of Health,NHS Sheffield CCG,30/11/2018,C&M-OES PEARS,LOCAL ENHANCED SERVICES,PRIMARY EYECARE SERVICES LTD,24812441,"26,911.00 "
Department of Health,NHS Sheffield CCG,30/11/2018,C&M-PMS Contract Value,PRC DELEGATED CO-COMMISSIONING,RICHMOND MEDICAL CENTRE,24668591,"66,994.64 "
Department of Health,NHS Sheffield CCG,30/11/2018,C&M-PMS DES Minor Surgery,PRC DELEGATED CO-COMMISSIONING,RICHMOND MEDICAL CENTRE,24668591,"1,615.00 "
Department of Health,NHS Sheffield CCG,30/11/2018,C&M-PMS PCO Other,PRC DELEGATED CO-COMMISSIONING,RICHMOND MEDICAL CENTRE,24668591,617.78 
Department of Health,NHS Sheffield CCG,30/11/2018,C&M-PMS Prem Notional Rent,PRC DELEGATED CO-COMMISSIONING,RICHMOND MEDICAL CENTRE,24668591,"4,731.00 "
Department of Health,NHS Sheffield CCG,30/11/2018,C&M-PMS Prem Rates,PRC DELEGATED CO-COMMISSIONING,RICHMOND MEDICAL CENTRE,24668591,"1,425.00 "
Department of Health,NHS Sheffield CCG,30/11/2018,C&M-PMS QOF Aspiration,PRC DELEGATED CO-COMMISSIONING,RICHMOND MEDICAL CENTRE,24668591,"8,188.48 "
Department of Health,NHS Sheffield CCG,30/11/2018,Cont Care-Physical Disab (<65),CHC ADULT FULLY FUNDED,ROSEBERRY CARE CENTRES,24651292,"41,113.79 "
Department of Health,NHS Sheffield CCG,30/11/2018,Cont Care-Funded Nursing Care Allow,FUNDED NURSING CARE,ROSEBERRY CARE CENTRES,24651419,"35,304.67 "
Department of Health,NHS Sheffield CCG,30/11/2018,Cont Care-Physical Disab (<65),CHC ADULT FULLY FUNDED,ROSEBERRY CARE CENTRES,24651434,"36,464.90 "
Department of Health,NHS Sheffield CCG,30/11/2018,Other Gen Supplies & Srv,CLINICAL LEADS,ROTHERHAM DONCASTER & SOUTH HUMBER MENTAL HEALTH NHS FOUNDATION TRUST,24485429,"28,500.00 "
Department of Health,NHS Sheffield CCG,30/11/2018,Course Fees,BEREAVEMENT SERVICE,ROTHERHAM NHS FOUNDATION TRUST,24572244,"2,341.80 "
Department of Health,NHS Sheffield CCG,30/11/2018,Seconded-Basic Sal-Staff fm oth org,BEREAVEMENT SERVICE,ROTHERHAM NHS FOUNDATION TRUST,24572244,"33,905.29 "
Department of Health,NHS Sheffield CCG,30/11/2018,Seconded-Employer's NHI Costs,BEREAVEMENT SERVICE,ROTHERHAM NHS FOUNDATION TRUST,24572244,"3,966.29 "
Department of Health,NHS Sheffield CCG,30/11/2018,Hcare Srv Rec Fdtn Trust-Contract Baseline,ACUTE COMMISSIONING,ROTHERHAM NHS FOUNDATION TRUST,24615626,"428,814.00 "
Department of Health,NHS Sheffield CCG,30/11/2018,C&M-PMS Contract Value,PRC DELEGATED CO-COMMISSIONING,RUSTLINGS ROAD MEDICAL CENTRE,24668595,"27,731.21 "
Department of Health,NHS Sheffield CCG,30/11/2018,C&M-PMS PCO Other,PRC DELEGATED CO-COMMISSIONING,RUSTLINGS ROAD MEDICAL CENTRE,24668595,347.11 
Department of Health,NHS Sheffield CCG,30/11/2018,C&M-PMS Prem Notional Rent,PRC DELEGATED CO-COMMISSIONING,RUSTLINGS ROAD MEDICAL CENTRE,24668595,"1,167.92 "
Department of Health,NHS Sheffield CCG,30/11/2018,C&M-PMS QOF Aspiration,PRC DELEGATED CO-COMMISSIONING,RUSTLINGS ROAD MEDICAL CENTRE,24668595,"2,389.45 "
Department of Health,NHS Sheffield CCG,30/11/2018,Cont Care-Physical Disab (<65),CHC ADULT FULLY FUNDED,SEVEN HILLS NURSING HOME,24651425,"32,039.24 "
Department of Health,NHS Sheffield CCG,30/11/2018,C&M-GMS Cost of Drugs -Prescribing,LOCAL ENHANCED SERVICES,SHARROW LANE MEDICAL CENTRE,24908433,"1,775.83 "
Department of Health,NHS Sheffield CCG,30/11/2018,C&M-GMS DES Minor Surgery,PRC DELEGATED CO-COMMISSIONING,SHARROW LANE MEDICAL CENTRE,24908433,80.00 
Department of Health,NHS Sheffield CCG,30/11/2018,C&M-GMS Global Sum,PRC DELEGATED CO-COMMISSIONING,SHARROW LANE MEDICAL CENTRE,24908433,"22,972.19 "
Department of Health,NHS Sheffield CCG,30/11/2018,C&M-GMS MPIG Correction Factor,PRC DELEGATED CO-COMMISSIONING,SHARROW LANE MEDICAL CENTRE,24908433,"1,960.32 "
Department of Health,NHS Sheffield CCG,30/11/2018,C&M-GMS PCO Other,PRC DELEGATED CO-COMMISSIONING,SHARROW LANE MEDICAL CENTRE,24908433,302.53 
Department of Health,NHS Sheffield CCG,30/11/2018,C&M-GMS Prem Notional Rent,PRC DELEGATED CO-COMMISSIONING,SHARROW LANE MEDICAL CENTRE,24908433,"2,741.66 "
Department of Health,NHS Sheffield CCG,30/11/2018,C&M-GMS Prem Rates,PRC DELEGATED CO-COMMISSIONING,SHARROW LANE MEDICAL CENTRE,24908433,517.00 
Department of Health,NHS Sheffield CCG,30/11/2018,C&M-GMS Prof Fees Prescribing,PRC DELEGATED CO-COMMISSIONING,SHARROW LANE MEDICAL CENTRE,24908433,326.60 
Department of Health,NHS Sheffield CCG,30/11/2018,C&M-GMS QOF Aspiration,PRC DELEGATED CO-COMMISSIONING,SHARROW LANE MEDICAL CENTRE,24908433,"2,521.19 "
Department of Health,NHS Sheffield CCG,30/11/2018,Hcare Srv Rec Fdtn Trust-CQUIN,ACUTE CHILDRENS SERVICES,SHEFFIELD CHILDRENS NHS FOUNDATION TRUST,24632346,"33,111.00 "
Department of Health,NHS Sheffield CCG,30/11/2018,Hcare Srv Rec Fdtn Trust-CQUIN,COMMUNITY SERVICES,SHEFFIELD CHILDRENS NHS FOUNDATION TRUST,24632346,"3,550.00 "
Department of Health,NHS Sheffield CCG,30/11/2018,Hcare Srv Rec Fdtn Trust-Contract Baseline,ACUTE CHILDRENS SERVICES,SHEFFIELD CHILDRENS NHS FOUNDATION TRUST,24632346,"(32,860.54)"
Department of Health,NHS Sheffield CCG,30/11/2018,Hcare Srv Rec Fdtn Trust-Contract Baseline,CHILD AND ADOLESCENT MENTAL HEALTH,SHEFFIELD CHILDRENS NHS FOUNDATION TRUST,24632346,"13,355.00 "
Department of Health,NHS Sheffield CCG,30/11/2018,Hcare Srv Rec Fdtn Trust-Contract Baseline,COMMUNITY SERVICES,SHEFFIELD CHILDRENS NHS FOUNDATION TRUST,24632346,"(17,364.00)"
Department of Health,NHS Sheffield CCG,30/11/2018,Hcare Srv Rec Fdtn Trust-Contract Baseline,HIGH COST DRUGS,SHEFFIELD CHILDRENS NHS FOUNDATION TRUST,24632346,"33,724.00 "
Department of Health,NHS Sheffield CCG,30/11/2018,Hcare Srv Rec Fdtn Trust-Contract Baseline,MENTAL HEALTH CONTRACTS,SHEFFIELD CHILDRENS NHS FOUNDATION TRUST,24632346,(736.00)
Department of Health,NHS Sheffield CCG,30/11/2018,Hcare Srv Rec Fdtn Trust-Contract Baseline,PLANNED CARE,SHEFFIELD CHILDRENS NHS FOUNDATION TRUST,24632346,"21,136.00 "
Department of Health,NHS Sheffield CCG,30/11/2018,Hcare Srv Rec Fdtn Trust-Contract Baseline,URGENT CARE,SHEFFIELD CHILDRENS NHS FOUNDATION TRUST,24632346,"(27,673.00)"
Department of Health,NHS Sheffield CCG,30/11/2018,Hcare Srv Rec Fdtn Trust-CQUIN,ACUTE CHILDRENS SERVICES,SHEFFIELD CHILDRENS NHS FOUNDATION TRUST,24890572,"33,781.00 "
Department of Health,NHS Sheffield CCG,30/11/2018,Hcare Srv Rec Fdtn Trust-CQUIN,COMMUNITY SERVICES,SHEFFIELD CHILDRENS NHS FOUNDATION TRUST,24890572,"3,984.00 "
Department of Health,NHS Sheffield CCG,30/11/2018,Hcare Srv Rec Fdtn Trust-Contract Baseline,ACUTE CHILDRENS SERVICES,SHEFFIELD CHILDRENS NHS FOUNDATION TRUST,24890572,"259,425.79 "
Department of Health,NHS Sheffield CCG,30/11/2018,Hcare Srv Rec Fdtn Trust-Contract Baseline,CHILD AND ADOLESCENT MENTAL HEALTH,SHEFFIELD CHILDRENS NHS FOUNDATION TRUST,24890572,"429,451.00 "
Department of Health,NHS Sheffield CCG,30/11/2018,Hcare Srv Rec Fdtn Trust-Contract Baseline,COMMUNITY SERVICES,SHEFFIELD CHILDRENS NHS FOUNDATION TRUST,24890572,"318,731.00 "
Department of Health,NHS Sheffield CCG,30/11/2018,Hcare Srv Rec Fdtn Trust-Contract Baseline,HIGH COST DRUGS,SHEFFIELD CHILDRENS NHS FOUNDATION TRUST,24890572,"62,433.00 "
Department of Health,NHS Sheffield CCG,30/11/2018,Hcare Srv Rec Fdtn Trust-Contract Baseline,MENTAL HEALTH CONTRACTS,SHEFFIELD CHILDRENS NHS FOUNDATION TRUST,24890572,"5,096.00 "
Department of Health,NHS Sheffield CCG,30/11/2018,Hcare Srv Rec Fdtn Trust-Contract Baseline,PLANNED CARE,SHEFFIELD CHILDRENS NHS FOUNDATION TRUST,24890572,"956,921.00 "
Department of Health,NHS Sheffield CCG,30/11/2018,Hcare Srv Rec Fdtn Trust-Contract Baseline,SAFEGUARDING,SHEFFIELD CHILDRENS NHS FOUNDATION TRUST,24890572,"33,664.00 "
Department of Health,NHS Sheffield CCG,30/11/2018,Hcare Srv Rec Fdtn Trust-Contract Baseline,URGENT CARE,SHEFFIELD CHILDRENS NHS FOUNDATION TRUST,24890572,"983,413.00 "
Department of Health,NHS Sheffield CCG,30/11/2018,Clinical&Medical-Othe Public Sector,COMMUNITY SERVICES,SHEFFIELD CITY COUNCIL,24632450,"21,831.00 "
Department of Health,NHS Sheffield CCG,30/11/2018,Clinical&Medical-Othe Public Sector,MENTAL HEALTH SERVICES - COLLABORATIVE COMMISSIONING,SHEFFIELD CITY COUNCIL,24632450,"16,919.00 "
Department of Health,NHS Sheffield CCG,30/11/2018,Clinical&Medical-Othe Public Sector,REABLEMENT,SHEFFIELD CITY COUNCIL,24632450,"160,417.00 "
Department of Health,NHS Sheffield CCG,30/11/2018,Clinical&Medical-Othe Public Sector,SAFEGUARDING,SHEFFIELD CITY COUNCIL,24632450,"15,324.00 "
Department of Health,NHS Sheffield CCG,30/11/2018,Soc Care-Joint H&C Teams/Working,INTERMEDIATE CARE,SHEFFIELD CITY COUNCIL,24632450,"151,447.00 "
Department of Health,NHS Sheffield CCG,30/11/2018,Soc Care-Other Soc Care,COMMUNITY SERVICES,SHEFFIELD CITY COUNCIL,24632450,"1,467,750.00 "
Department of Health,NHS Sheffield CCG,30/11/2018,Soc Care-Support Prim Care,COMMUNITY SERVICES,SHEFFIELD CITY COUNCIL,24632450,"58,000.00 "
Department of Health,NHS Sheffield CCG,30/11/2018,Programme Support Costs,COUNSELLING SERVICES,SHEFFIELD CITY COUNCIL,24711829,"26,750.00 "
Department of Health,NHS Sheffield CCG,30/11/2018,Cont Care-Physical Disab (65+),CHC ADULT FULLY FUNDED,SHEFFIELD CITY COUNCIL,24812737,"827,236.11 "
Department of Health,NHS Sheffield CCG,30/11/2018,Clinical&Medical-Othe Public Sector,ACUTE CHILDRENS SERVICES,SHEFFIELD CITY COUNCIL,24914456,"55,000.00 "
Department of Health,NHS Sheffield CCG,30/11/2018,C&M-APMS Contract Value,PRC DELEGATED CO-COMMISSIONING,SHEFFIELD HEALTH & SOCIAL CARE NHS FOUNDATION TRUST,24670505,"125,094.31 "
Department of Health,NHS Sheffield CCG,30/11/2018,C&M-APMS DES Minor Surgery,PRC DELEGATED CO-COMMISSIONING,SHEFFIELD HEALTH & SOCIAL CARE NHS FOUNDATION TRUST,24670505,160.00 
Department of Health,NHS Sheffield CCG,30/11/2018,C&M-APMS OOH Opt Outs,PRC DELEGATED CO-COMMISSIONING,SHEFFIELD HEALTH & SOCIAL CARE NHS FOUNDATION TRUST,24670505,5.00 
Department of Health,NHS Sheffield CCG,30/11/2018,C&M-APMS Prem Actual Rent,PRC DELEGATED CO-COMMISSIONING,SHEFFIELD HEALTH & SOCIAL CARE NHS FOUNDATION TRUST,24670505,"5,169.68 "
Department of Health,NHS Sheffield CCG,30/11/2018,C&M-APMS Prem Healthcentre Rent,PRC DELEGATED CO-COMMISSIONING,SHEFFIELD HEALTH & SOCIAL CARE NHS FOUNDATION TRUST,24670505,"59,021.14 "
Department of Health,NHS Sheffield CCG,30/11/2018,C&M-APMS Prem Notional Rent,PRC DELEGATED CO-COMMISSIONING,SHEFFIELD HEALTH & SOCIAL CARE NHS FOUNDATION TRUST,24670505,"2,804.17 "
Department of Health,NHS Sheffield CCG,30/11/2018,C&M-PMS Contract Value,PRC DELEGATED CO-COMMISSIONING,SHEFFIELD HEALTH & SOCIAL CARE NHS FOUNDATION TRUST,24670505,"2,915.63 "
Department of Health,NHS Sheffield CCG,30/11/2018,C&M-PMS Out of Hours Opt Outs,PRC DELEGATED CO-COMMISSIONING,SHEFFIELD HEALTH & SOCIAL CARE NHS FOUNDATION TRUST,24670505,107.98 
Department of Health,NHS Sheffield CCG,30/11/2018,C&M-PMS QOF Aspiration,PRC DELEGATED CO-COMMISSIONING,SHEFFIELD HEALTH & SOCIAL CARE NHS FOUNDATION TRUST,24670505,"11,714.38 "
Department of Health,NHS Sheffield CCG,30/11/2018,C&M-APMS Contract Value,PRC DELEGATED CO-COMMISSIONING,SHEFFIELD HEALTH & SOCIAL CARE NHS FOUNDATION TRUST,24670509,"27,885.87 "
Department of Health,NHS Sheffield CCG,30/11/2018,C&M-APMS DES Minor Surgery,PRC DELEGATED CO-COMMISSIONING,SHEFFIELD HEALTH & SOCIAL CARE NHS FOUNDATION TRUST,24670509,80.00 
Department of Health,NHS Sheffield CCG,30/11/2018,C&M-APMS OOH Opt Outs,PRC DELEGATED CO-COMMISSIONING,SHEFFIELD HEALTH & SOCIAL CARE NHS FOUNDATION TRUST,24670509,8.11 
Department of Health,NHS Sheffield CCG,30/11/2018,C&M-PMS Contract Value,PRC DELEGATED CO-COMMISSIONING,SHEFFIELD HEALTH & SOCIAL CARE NHS FOUNDATION TRUST,24670509,639.51 
Department of Health,NHS Sheffield CCG,30/11/2018,C&M-PMS Out of Hours Opt Outs,PRC DELEGATED CO-COMMISSIONING,SHEFFIELD HEALTH & SOCIAL CARE NHS FOUNDATION TRUST,24670509,23.68 
Department of Health,NHS Sheffield CCG,30/11/2018,C&M-PMS QOF Aspiration,PRC DELEGATED CO-COMMISSIONING,SHEFFIELD HEALTH & SOCIAL CARE NHS FOUNDATION TRUST,24670509,"1,425.29 "
Department of Health,NHS Sheffield CCG,30/11/2018,Seconded-Basic Sal-Staff fm oth org,BEREAVEMENT SERVICE,SHEFFIELD HEALTH & SOCIAL CARE NHS FOUNDATION TRUST,24812042,"27,711.00 "
Department of Health,NHS Sheffield CCG,30/11/2018,Seconded-Basic Sal-Staff fm oth org,BEREAVEMENT SERVICE,SHEFFIELD HEALTH & SOCIAL CARE NHS FOUNDATION TRUST,24812337,"(27,711.00)"
Department of Health,NHS Sheffield CCG,30/11/2018,Cont Care-NHSFT-Adult 100% Funded,CHC ADULT FULLY FUNDED,SHEFFIELD HEALTH & SOCIAL CARE NHS FOUNDATION TRUST,24914453,"240,830.02 "
Department of Health,NHS Sheffield CCG,30/11/2018,Hcare Srv Rec Fdtn Trust-Contract Baseline,ACUTE COMMISSIONING,SHEFFIELD TEACHING HOSPITALS NHS FOUNDATION TRUST,24745526,"3,138,990.00 "
Department of Health,NHS Sheffield CCG,30/11/2018,Hcare Srv Rec Fdtn Trust-Contract Baseline,ACUTE COMMISSIONING,SHEFFIELD TEACHING HOSPITALS NHS FOUNDATION TRUST,24954032,"336,802.00 "
Department of Health,NHS Sheffield CCG,30/11/2018,Hcare Srv Rec Fdtn Trust-Contract Baseline,ACUTE COMMISSIONING,SHEFFIELD TEACHING HOSPITALS NHS FOUNDATION TRUST,24954039,"1,280,880.00 "
Department of Health,NHS Sheffield CCG,30/11/2018,Hcare Srv Rec Fdtn Trust-Contract Baseline,ACUTE COMMISSIONING,SHEFFIELD TEACHING HOSPITALS NHS FOUNDATION TRUST,24954044,"3,905,387.00 "
Department of Health,NHS Sheffield CCG,30/11/2018,Hcare Srv Rec Fdtn Trust-Contract Baseline,ACUTE COMMISSIONING,SHEFFIELD TEACHING HOSPITALS NHS FOUNDATION TRUST,24954050,"27,862,481.00 "
Department of Health,NHS Sheffield CCG,30/11/2018,Hcare Srv Rec Fdtn Trust-Non Contract,ACUTE COMMISSIONING,SHEFFIELD TEACHING HOSPITALS NHS FOUNDATION TRUST,24954053,"2,395,792.08 "
Department of Health,NHS Sheffield CCG,30/11/2018,Hcare Srv Rec Fdtn Trust-Non Contract,ACUTE COMMISSIONING,SHEFFIELD TEACHING HOSPITALS NHS FOUNDATION TRUST,24954069,"314,842.38 "
Department of Health,NHS Sheffield CCG,30/11/2018,C&M-GMS GP Statutory Levy,PRC DELEGATED CO-COMMISSIONING,SHIREGREEN MEDICAL CENTRE,24908440,0.84 
Department of Health,NHS Sheffield CCG,30/11/2018,C&M-GMS Global Sum,PRC DELEGATED CO-COMMISSIONING,SHIREGREEN MEDICAL CENTRE,24908440,"58,536.85 "
Department of Health,NHS Sheffield CCG,30/11/2018,C&M-GMS MPIG Correction Factor,PRC DELEGATED CO-COMMISSIONING,SHIREGREEN MEDICAL CENTRE,24908440,453.69 
Department of Health,NHS Sheffield CCG,30/11/2018,C&M-GMS PCO Other,PRC DELEGATED CO-COMMISSIONING,SHIREGREEN MEDICAL CENTRE,24908440,551.72 
Department of Health,NHS Sheffield CCG,30/11/2018,C&M-GMS Prem Cost Rent,PRC DELEGATED CO-COMMISSIONING,SHIREGREEN MEDICAL CENTRE,24908440,"1,792.33 "
Department of Health,NHS Sheffield CCG,30/11/2018,C&M-GMS Prem Notional Rent,PRC DELEGATED CO-COMMISSIONING,SHIREGREEN MEDICAL CENTRE,24908440,"5,375.00 "
Department of Health,NHS Sheffield CCG,30/11/2018,C&M-GMS Prem Rates,PRC DELEGATED CO-COMMISSIONING,SHIREGREEN MEDICAL CENTRE,24908440,"1,844.00 "
Department of Health,NHS Sheffield CCG,30/11/2018,C&M-GMS QOF Aspiration,PRC DELEGATED CO-COMMISSIONING,SHIREGREEN MEDICAL CENTRE,24908440,"6,765.83 "
Department of Health,NHS Sheffield CCG,30/11/2018,C&M-GMS Voluntary Levy,PRC DELEGATED CO-COMMISSIONING,SHIREGREEN MEDICAL CENTRE,24908440,0.14 
Department of Health,NHS Sheffield CCG,30/11/2018,C&M-PMS Contract Value,PRC DELEGATED CO-COMMISSIONING,SLOAN MEDICAL CENTRE,24668597,"94,858.63 "
Department of Health,NHS Sheffield CCG,30/11/2018,C&M-PMS DES Learn Dsblty Hlth Chk,PRC DELEGATED CO-COMMISSIONING,SLOAN MEDICAL CENTRE,24668597,420.00 
Department of Health,NHS Sheffield CCG,30/11/2018,C&M-PMS DES Minor Surgery,PRC DELEGATED CO-COMMISSIONING,SLOAN MEDICAL CENTRE,24668597,"3,785.00 "
Department of Health,NHS Sheffield CCG,30/11/2018,C&M-PMS PCO Other,PRC DELEGATED CO-COMMISSIONING,SLOAN MEDICAL CENTRE,24668597,879.11 
Department of Health,NHS Sheffield CCG,30/11/2018,C&M-PMS Prem Actual Rent,PRC DELEGATED CO-COMMISSIONING,SLOAN MEDICAL CENTRE,24668597,"15,535.83 "
Department of Health,NHS Sheffield CCG,30/11/2018,C&M-PMS Prem Notional Rent,PRC DELEGATED CO-COMMISSIONING,SLOAN MEDICAL CENTRE,24668597,608.33 
Department of Health,NHS Sheffield CCG,30/11/2018,C&M-PMS Prem Rates,PRC DELEGATED CO-COMMISSIONING,SLOAN MEDICAL CENTRE,24668597,"3,083.00 "
Department of Health,NHS Sheffield CCG,30/11/2018,C&M-PMS Prem Water Rates,PRC DELEGATED CO-COMMISSIONING,SLOAN MEDICAL CENTRE,24668597,299.78 
Department of Health,NHS Sheffield CCG,30/11/2018,C&M-PMS QOF Aspiration,PRC DELEGATED CO-COMMISSIONING,SLOAN MEDICAL CENTRE,24668597,"9,952.56 "
Department of Health,NHS Sheffield CCG,30/11/2018,C&M-PMS Contract Value,PRC DELEGATED CO-COMMISSIONING,SOTHALL MEDICAL CENTRE,24668599,"71,505.35 "
Department of Health,NHS Sheffield CCG,30/11/2018,C&M-PMS DES Learn Dsblty Hlth Chk,PRC DELEGATED CO-COMMISSIONING,SOTHALL MEDICAL CENTRE,24668599,840.00 
Department of Health,NHS Sheffield CCG,30/11/2018,C&M-PMS DES Minor Surgery,PRC DELEGATED CO-COMMISSIONING,SOTHALL MEDICAL CENTRE,24668599,"1,440.00 "
Department of Health,NHS Sheffield CCG,30/11/2018,C&M-PMS Out of Hours Opt Outs,PRC DELEGATED CO-COMMISSIONING,SOTHALL MEDICAL CENTRE,24668599,2.83 
Department of Health,NHS Sheffield CCG,30/11/2018,C&M-PMS PCO Other,PRC DELEGATED CO-COMMISSIONING,SOTHALL MEDICAL CENTRE,24668599,701.89 
Department of Health,NHS Sheffield CCG,30/11/2018,C&M-PMS Prem Notional Rent,PRC DELEGATED CO-COMMISSIONING,SOTHALL MEDICAL CENTRE,24668599,"5,116.67 "
Department of Health,NHS Sheffield CCG,30/11/2018,C&M-PMS Prem Rates,PRC DELEGATED CO-COMMISSIONING,SOTHALL MEDICAL CENTRE,24668599,"1,251.00 "
Department of Health,NHS Sheffield CCG,30/11/2018,C&M-PMS QOF Aspiration,PRC DELEGATED CO-COMMISSIONING,SOTHALL MEDICAL CENTRE,24668599,"8,691.35 "
Department of Health,NHS Sheffield CCG,30/11/2018,Cont Care- Adult 100% Fully Funded,CHC ADULT FULLY FUNDED,SOUTH YORKSHIRE HOUSING ASSOCIATION LTD,24588704,"25,500.00 "
Department of Health,NHS Sheffield CCG,30/11/2018,Cont Care- Adult 100% Fully Funded,CHC ADULT FULLY FUNDED,SOUTH YORKSHIRE HOUSING ASSOCIATION LTD,24615926,"81,249.96 "
Department of Health,NHS Sheffield CCG,30/11/2018,Clinical&Medical-Independent Sector,MENTAL HEALTH CONTRACTS,SOUTH YORKSHIRE HOUSING ASSOCIATION LTD,24632366,"34,435.00 "
Department of Health,NHS Sheffield CCG,30/11/2018,Cont Care-Physical Disab (<65),CHC ADULT FULLY FUNDED,SOUTH YORKSHIRE HOUSING ASSOCIATION LTD,24632447,"130,406.84 "
Department of Health,NHS Sheffield CCG,30/11/2018,C&M-PMS Contract Value,PRC DELEGATED CO-COMMISSIONING,SOUTHEY GREEN MEDICAL CENTRE,24693003,"26,605.96 "
Department of Health,NHS Sheffield CCG,30/11/2018,C&M-PMS Out of Hours Opt Outs,PRC DELEGATED CO-COMMISSIONING,SOUTHEY GREEN MEDICAL CENTRE,24693003,42.83 
Department of Health,NHS Sheffield CCG,30/11/2018,C&M-PMS Prem Notional Rent,PRC DELEGATED CO-COMMISSIONING,SOUTHEY GREEN MEDICAL CENTRE,24693003,"3,362.50 "
Department of Health,NHS Sheffield CCG,30/11/2018,C&M-PMS QOF Aspiration,PRC DELEGATED CO-COMMISSIONING,SOUTHEY GREEN MEDICAL CENTRE,24693003,"2,539.36 "
Department of Health,NHS Sheffield CCG,30/11/2018,C&M-GMS IT Comm Servs -GP Practices,PRIMARY CARE IT,ST LUKES HOSPICE,24867646,"30,000.00 "
Department of Health,NHS Sheffield CCG,30/11/2018,C&M-GMS GP Statutory Levy,PRC DELEGATED CO-COMMISSIONING,STANNINGTON MEDICAL CENTRE,24908444,61.38 
Department of Health,NHS Sheffield CCG,30/11/2018,C&M-GMS Global Sum,PRC DELEGATED CO-COMMISSIONING,STANNINGTON MEDICAL CENTRE,24908444,"24,709.21 "
Department of Health,NHS Sheffield CCG,30/11/2018,C&M-GMS PCO Other,PRC DELEGATED CO-COMMISSIONING,STANNINGTON MEDICAL CENTRE,24908444,257.66 
Department of Health,NHS Sheffield CCG,30/11/2018,C&M-GMS Prem Notional Rent,PRC DELEGATED CO-COMMISSIONING,STANNINGTON MEDICAL CENTRE,24908444,"2,575.00 "
Department of Health,NHS Sheffield CCG,30/11/2018,C&M-GMS Prem Rates,PRC DELEGATED CO-COMMISSIONING,STANNINGTON MEDICAL CENTRE,24908444,368.00 
Department of Health,NHS Sheffield CCG,30/11/2018,C&M-GMS QOF Aspiration,PRC DELEGATED CO-COMMISSIONING,STANNINGTON MEDICAL CENTRE,24908444,"2,850.04 "
Department of Health,NHS Sheffield CCG,30/11/2018,C&M-GMS Voluntary Levy,PRC DELEGATED CO-COMMISSIONING,STANNINGTON MEDICAL CENTRE,24908444,10.23 
Department of Health,NHS Sheffield CCG,30/11/2018,C&M-GMS Cost of Drugs -Prescribing,LOCAL ENHANCED SERVICES,STONECROFT MEDICAL CENTRE,24908442,"1,296.70 "
Department of Health,NHS Sheffield CCG,30/11/2018,C&M-GMS DES Learn Dsblty Hlth Chk,PRC DELEGATED CO-COMMISSIONING,STONECROFT MEDICAL CENTRE,24908442,420.00 
Department of Health,NHS Sheffield CCG,30/11/2018,C&M-GMS DES Minor Surgery,PRC DELEGATED CO-COMMISSIONING,STONECROFT MEDICAL CENTRE,24908442,760.00 
Department of Health,NHS Sheffield CCG,30/11/2018,C&M-GMS Global Sum,PRC DELEGATED CO-COMMISSIONING,STONECROFT MEDICAL CENTRE,24908442,"31,949.37 "
Department of Health,NHS Sheffield CCG,30/11/2018,C&M-GMS MPIG Correction Factor,PRC DELEGATED CO-COMMISSIONING,STONECROFT MEDICAL CENTRE,24908442,618.25 
Department of Health,NHS Sheffield CCG,30/11/2018,C&M-GMS PCO Other,PRC DELEGATED CO-COMMISSIONING,STONECROFT MEDICAL CENTRE,24908442,315.78 
Department of Health,NHS Sheffield CCG,30/11/2018,C&M-GMS Prem Notional Rent,PRC DELEGATED CO-COMMISSIONING,STONECROFT MEDICAL CENTRE,24908442,"2,808.33 "
Department of Health,NHS Sheffield CCG,30/11/2018,C&M-GMS Prem Rates,PRC DELEGATED CO-COMMISSIONING,STONECROFT MEDICAL CENTRE,24908442,"1,188.00 "
Department of Health,NHS Sheffield CCG,30/11/2018,C&M-GMS Prof Fees Prescribing,PRC DELEGATED CO-COMMISSIONING,STONECROFT MEDICAL CENTRE,24908442,80.50 
Department of Health,NHS Sheffield CCG,30/11/2018,C&M-GMS QOF Aspiration,PRC DELEGATED CO-COMMISSIONING,STONECROFT MEDICAL CENTRE,24908442,"4,160.47 "
Department of Health,NHS Sheffield CCG,30/11/2018,Clinical&Medical-Independent Sector,MENTAL HEALTH CONTRACTS,SUSASH GB LTD T/A EAGLE HOUSE,24632379,"30,092.00 "
Department of Health,NHS Sheffield CCG,30/11/2018,C&M-GMS DES Minor Surgery,PRC DELEGATED CO-COMMISSIONING,TOTLEY RISE MEDICAL CENTRE,24908446,595.00 
Department of Health,NHS Sheffield CCG,30/11/2018,C&M-GMS Global Sum,PRC DELEGATED CO-COMMISSIONING,TOTLEY RISE MEDICAL CENTRE,24908446,"24,316.41 "
Department of Health,NHS Sheffield CCG,30/11/2018,C&M-GMS MPIG Correction Factor,PRC DELEGATED CO-COMMISSIONING,TOTLEY RISE MEDICAL CENTRE,24908446,103.13 
Department of Health,NHS Sheffield CCG,30/11/2018,C&M-GMS Prem Notional Rent,PRC DELEGATED CO-COMMISSIONING,TOTLEY RISE MEDICAL CENTRE,24908446,"1,491.67 "
Department of Health,NHS Sheffield CCG,30/11/2018,C&M-GMS Prem Rates,PRC DELEGATED CO-COMMISSIONING,TOTLEY RISE MEDICAL CENTRE,24908446,151.00 
Department of Health,NHS Sheffield CCG,30/11/2018,C&M-GMS QOF Aspiration,PRC DELEGATED CO-COMMISSIONING,TOTLEY RISE MEDICAL CENTRE,24908446,"1,881.75 "
Department of Health,NHS Sheffield CCG,30/11/2018,C&M-GMS Cost of Drugs -Prescribing,LOCAL ENHANCED SERVICES,TRAMWAYS MEDICAL CENTRE,24908448,"1,363.14 "
Department of Health,NHS Sheffield CCG,30/11/2018,C&M-GMS DES Minor Surgery,PRC DELEGATED CO-COMMISSIONING,TRAMWAYS MEDICAL CENTRE,24908448,"9,005.00 "
Department of Health,NHS Sheffield CCG,30/11/2018,C&M-GMS GP Statutory Levy,PRC DELEGATED CO-COMMISSIONING,TRAMWAYS MEDICAL CENTRE,24908448,0.57 
Department of Health,NHS Sheffield CCG,30/11/2018,C&M-GMS Global Sum,PRC DELEGATED CO-COMMISSIONING,TRAMWAYS MEDICAL CENTRE,24908448,"61,353.66 "
Department of Health,NHS Sheffield CCG,30/11/2018,C&M-GMS PCO Other,PRC DELEGATED CO-COMMISSIONING,TRAMWAYS MEDICAL CENTRE,24908448,597.78 
Department of Health,NHS Sheffield CCG,30/11/2018,C&M-GMS Prem Cost Rent,PRC DELEGATED CO-COMMISSIONING,TRAMWAYS MEDICAL CENTRE,24908448,"4,012.75 "
Department of Health,NHS Sheffield CCG,30/11/2018,C&M-GMS Prem Rates,PRC DELEGATED CO-COMMISSIONING,TRAMWAYS MEDICAL CENTRE,24908448,980.00 
Department of Health,NHS Sheffield CCG,30/11/2018,C&M-GMS Prof Fees Prescribing,PRC DELEGATED CO-COMMISSIONING,TRAMWAYS MEDICAL CENTRE,24908448,223.10 
Department of Health,NHS Sheffield CCG,30/11/2018,C&M-GMS QOF Aspiration,PRC DELEGATED CO-COMMISSIONING,TRAMWAYS MEDICAL CENTRE,24908448,"5,780.50 "
Department of Health,NHS Sheffield CCG,30/11/2018,C&M-GMS Voluntary Levy,PRC DELEGATED CO-COMMISSIONING,TRAMWAYS MEDICAL CENTRE,24908448,0.10 
Department of Health,NHS Sheffield CCG,30/11/2018,Cont Care-Funded Nursing Care Allow,FUNDED NURSING CARE,ULTIMA CARE CENTRES (NO1) LTD,24651361,"30,660.50 "
Department of Health,NHS Sheffield CCG,30/11/2018,C&M-PMS Contract Value,PRC DELEGATED CO-COMMISSIONING,UNIVERSITY HEALTH SERVICE,24668604,"224,850.05 "
Department of Health,NHS Sheffield CCG,30/11/2018,C&M-PMS DES Minor Surgery,PRC DELEGATED CO-COMMISSIONING,UNIVERSITY HEALTH SERVICE,24668604,"1,020.00 "
Department of Health,NHS Sheffield CCG,30/11/2018,C&M-PMS Out of Hours Opt Outs,PRC DELEGATED CO-COMMISSIONING,UNIVERSITY HEALTH SERVICE,24668604,440.96 
Department of Health,NHS Sheffield CCG,30/11/2018,C&M-PMS Prem Notional Rent,PRC DELEGATED CO-COMMISSIONING,UNIVERSITY HEALTH SERVICE,24668604,"15,833.33 "
Department of Health,NHS Sheffield CCG,30/11/2018,C&M-PMS QOF Aspiration,PRC DELEGATED CO-COMMISSIONING,UNIVERSITY HEALTH SERVICE,24668604,"3,984.72 "
Department of Health,NHS Sheffield CCG,30/11/2018,C&M-GMS Cost of Drugs -Prescribing,LOCAL ENHANCED SERVICES,UPPERTHORPE MEDICAL CENTRE,24908451,"2,609.93 "
Department of Health,NHS Sheffield CCG,30/11/2018,C&M-GMS DES Learn Dsblty Hlth Chk,PRC DELEGATED CO-COMMISSIONING,UPPERTHORPE MEDICAL CENTRE,24908451,420.00 
Department of Health,NHS Sheffield CCG,30/11/2018,C&M-GMS DES Minor Surgery,PRC DELEGATED CO-COMMISSIONING,UPPERTHORPE MEDICAL CENTRE,24908451,"1,105.00 "
Department of Health,NHS Sheffield CCG,30/11/2018,C&M-GMS Global Sum,PRC DELEGATED CO-COMMISSIONING,UPPERTHORPE MEDICAL CENTRE,24908451,"80,572.43 "
Department of Health,NHS Sheffield CCG,30/11/2018,C&M-GMS MPIG Correction Factor,PRC DELEGATED CO-COMMISSIONING,UPPERTHORPE MEDICAL CENTRE,24908451,"1,325.74 "
Department of Health,NHS Sheffield CCG,30/11/2018,C&M-GMS Prem Notional Rent,PRC DELEGATED CO-COMMISSIONING,UPPERTHORPE MEDICAL CENTRE,24908451,"2,497.83 "
Department of Health,NHS Sheffield CCG,30/11/2018,C&M-GMS Prem Rates,PRC DELEGATED CO-COMMISSIONING,UPPERTHORPE MEDICAL CENTRE,24908451,"2,338.00 "
Department of Health,NHS Sheffield CCG,30/11/2018,C&M-GMS Prof Fees Prescribing,PRC DELEGATED CO-COMMISSIONING,UPPERTHORPE MEDICAL CENTRE,24908451,489.90 
Department of Health,NHS Sheffield CCG,30/11/2018,C&M-GMS QOF Aspiration,PRC DELEGATED CO-COMMISSIONING,UPPERTHORPE MEDICAL CENTRE,24908451,"8,681.64 "
Department of Health,NHS Sheffield CCG,30/11/2018,C&M-PMS Contract Value,PRC DELEGATED CO-COMMISSIONING,UPWELL STREET SURGERY,24668606,"38,122.16 "
Department of Health,NHS Sheffield CCG,30/11/2018,C&M-PMS DES Minor Surgery,PRC DELEGATED CO-COMMISSIONING,UPWELL STREET SURGERY,24668606,600.00 
Department of Health,NHS Sheffield CCG,30/11/2018,C&M-PMS Out of Hours Opt Outs,PRC DELEGATED CO-COMMISSIONING,UPWELL STREET SURGERY,24668606,17.00 
Department of Health,NHS Sheffield CCG,30/11/2018,C&M-PMS PCO Other,PRC DELEGATED CO-COMMISSIONING,UPWELL STREET SURGERY,24668606,357.44 
Department of Health,NHS Sheffield CCG,30/11/2018,C&M-PMS Prem Notional Rent,PRC DELEGATED CO-COMMISSIONING,UPWELL STREET SURGERY,24668606,"8,137.50 "
Department of Health,NHS Sheffield CCG,30/11/2018,C&M-PMS Prem Rates,PRC DELEGATED CO-COMMISSIONING,UPWELL STREET SURGERY,24668606,"1,265.00 "
Department of Health,NHS Sheffield CCG,30/11/2018,C&M-PMS QOF Aspiration,PRC DELEGATED CO-COMMISSIONING,UPWELL STREET SURGERY,24668606,"4,294.99 "
Department of Health,NHS Sheffield CCG,30/11/2018,C&M-PMS Contract Value,PRC DELEGATED CO-COMMISSIONING,VALLEY MEDICAL CENTRE,24668608,"78,034.72 "
Department of Health,NHS Sheffield CCG,30/11/2018,C&M-PMS DES Minor Surgery,PRC DELEGATED CO-COMMISSIONING,VALLEY MEDICAL CENTRE,24668608,"2,385.00 "
Department of Health,NHS Sheffield CCG,30/11/2018,C&M-PMS Out of Hours Opt Outs,PRC DELEGATED CO-COMMISSIONING,VALLEY MEDICAL CENTRE,24668608,9.57 
Department of Health,NHS Sheffield CCG,30/11/2018,C&M-PMS Prem Rates,PRC DELEGATED CO-COMMISSIONING,VALLEY MEDICAL CENTRE,24668608,"1,254.00 "
Department of Health,NHS Sheffield CCG,30/11/2018,C&M-PMS Prem Water Rates,PRC DELEGATED CO-COMMISSIONING,VALLEY MEDICAL CENTRE,24668608,356.97 
Department of Health,NHS Sheffield CCG,30/11/2018,C&M-PMS QOF Aspiration,PRC DELEGATED CO-COMMISSIONING,VALLEY MEDICAL CENTRE,24668608,"8,516.48 "
Department of Health,NHS Sheffield CCG,30/11/2018,Other Gen Supplies & Srv,CLINICAL LEADS,VOLUNTARY ACTION ROTHERHAM,24556902,"28,875.00 "
Department of Health,NHS Sheffield CCG,30/11/2018,Other Gen Supplies & Srv,CLINICAL LEADS,VOLUNTARY ACTION ROTHERHAM,24556903,"32,875.00 "
Department of Health,NHS Sheffield CCG,30/11/2018,C&M-GMS Cost of Drugs -Prescribing,LOCAL ENHANCED SERVICES,WALKLEY HOUSE MEDICAL CENTRE,24908456,"8,856.03 "
Department of Health,NHS Sheffield CCG,30/11/2018,C&M-GMS DES Minor Surgery,PRC DELEGATED CO-COMMISSIONING,WALKLEY HOUSE MEDICAL CENTRE,24908456,"1,440.00 "
Department of Health,NHS Sheffield CCG,30/11/2018,C&M-GMS Global Sum,PRC DELEGATED CO-COMMISSIONING,WALKLEY HOUSE MEDICAL CENTRE,24908456,"84,641.43 "
Department of Health,NHS Sheffield CCG,30/11/2018,C&M-GMS Prem Notional Rent,PRC DELEGATED CO-COMMISSIONING,WALKLEY HOUSE MEDICAL CENTRE,24908456,"5,635.50 "
Department of Health,NHS Sheffield CCG,30/11/2018,C&M-GMS Prem Rates,PRC DELEGATED CO-COMMISSIONING,WALKLEY HOUSE MEDICAL CENTRE,24908456,"1,779.00 "
Department of Health,NHS Sheffield CCG,30/11/2018,C&M-GMS Prof Fees Prescribing,PRC DELEGATED CO-COMMISSIONING,WALKLEY HOUSE MEDICAL CENTRE,24908456,"1,883.70 "
Department of Health,NHS Sheffield CCG,30/11/2018,C&M-GMS QOF Aspiration,PRC DELEGATED CO-COMMISSIONING,WALKLEY HOUSE MEDICAL CENTRE,24908456,"8,592.68 "
Department of Health,NHS Sheffield CCG,30/11/2018,C&M-GMS Cost of Drugs -Prescribing,LOCAL ENHANCED SERVICES,WHITE HOUSE SURGERY SHEFFIELD,24908454,"5,661.74 "
Department of Health,NHS Sheffield CCG,30/11/2018,C&M-GMS DES Minor Surgery,PRC DELEGATED CO-COMMISSIONING,WHITE HOUSE SURGERY SHEFFIELD,24908454,200.00 
Department of Health,NHS Sheffield CCG,30/11/2018,C&M-GMS GP Statutory Levy,PRC DELEGATED CO-COMMISSIONING,WHITE HOUSE SURGERY SHEFFIELD,24908454,0.03 
Department of Health,NHS Sheffield CCG,30/11/2018,C&M-GMS Global Sum,PRC DELEGATED CO-COMMISSIONING,WHITE HOUSE SURGERY SHEFFIELD,24908454,"49,329.42 "
Department of Health,NHS Sheffield CCG,30/11/2018,C&M-GMS MPIG Correction Factor,PRC DELEGATED CO-COMMISSIONING,WHITE HOUSE SURGERY SHEFFIELD,24908454,"1,391.30 "
Department of Health,NHS Sheffield CCG,30/11/2018,C&M-GMS Prem Notional Rent,PRC DELEGATED CO-COMMISSIONING,WHITE HOUSE SURGERY SHEFFIELD,24908454,"9,104.17 "
Department of Health,NHS Sheffield CCG,30/11/2018,C&M-GMS Prem Rates,PRC DELEGATED CO-COMMISSIONING,WHITE HOUSE SURGERY SHEFFIELD,24908454,"2,211.00 "
Department of Health,NHS Sheffield CCG,30/11/2018,C&M-GMS Prof Fees Prescribing,PRC DELEGATED CO-COMMISSIONING,WHITE HOUSE SURGERY SHEFFIELD,24908454,"1,711.20 "
Department of Health,NHS Sheffield CCG,30/11/2018,C&M-GMS QOF Aspiration,PRC DELEGATED CO-COMMISSIONING,WHITE HOUSE SURGERY SHEFFIELD,24908454,"6,017.46 "
Department of Health,NHS Sheffield CCG,30/11/2018,C&M-GMS Voluntary Levy,PRC DELEGATED CO-COMMISSIONING,WHITE HOUSE SURGERY SHEFFIELD,24908454,0.01 
Department of Health,NHS Sheffield CCG,30/11/2018,Cont Care-Physical Disab (<65),CHC ADULT FULLY FUNDED,WILLOWBECK HEALTH CARE LTD,24632436,"125,989.36 "
Department of Health,NHS Sheffield CCG,30/11/2018,C&M-PMS Contract Value,PRC DELEGATED CO-COMMISSIONING,WINCOBANK MEDICAL CENTRE,24668612,"62,408.70 "
Department of Health,NHS Sheffield CCG,30/11/2018,C&M-PMS DES Minor Surgery,PRC DELEGATED CO-COMMISSIONING,WINCOBANK MEDICAL CENTRE,24668612,"3,120.00 "
Department of Health,NHS Sheffield CCG,30/11/2018,C&M-PMS Out of Hours Opt Outs,PRC DELEGATED CO-COMMISSIONING,WINCOBANK MEDICAL CENTRE,24668612,3.43 
Department of Health,NHS Sheffield CCG,30/11/2018,C&M-PMS Prem Healthcentre Rent,PRC DELEGATED CO-COMMISSIONING,WINCOBANK MEDICAL CENTRE,24668612,"44,024.50 "
Department of Health,NHS Sheffield CCG,30/11/2018,C&M-PMS QOF Aspiration,PRC DELEGATED CO-COMMISSIONING,WINCOBANK MEDICAL CENTRE,24668612,"6,309.99 "
Department of Health,NHS Sheffield CCG,30/11/2018,C&M-PMS Contract Value,PRC DELEGATED CO-COMMISSIONING,WOODHOUSE HEALTH CENTRE,24668610,"101,994.42 "
Department of Health,NHS Sheffield CCG,30/11/2018,C&M-PMS DES Minor Surgery,PRC DELEGATED CO-COMMISSIONING,WOODHOUSE HEALTH CENTRE,24668610,"2,320.00 "
Department of Health,NHS Sheffield CCG,30/11/2018,C&M-PMS Prem Notional Rent,PRC DELEGATED CO-COMMISSIONING,WOODHOUSE HEALTH CENTRE,24668610,"6,338.58 "
Department of Health,NHS Sheffield CCG,30/11/2018,C&M-PMS QOF Aspiration,PRC DELEGATED CO-COMMISSIONING,WOODHOUSE HEALTH CENTRE,24668610,"13,695.89 "
Department of Health,NHS Sheffield CCG,30/11/2018,C&M-PMS Contract Value,PRC DELEGATED CO-COMMISSIONING,WOODSEATS MEDICAL CENTRE,24670507,"75,487.62 "
Department of Health,NHS Sheffield CCG,30/11/2018,C&M-PMS DES Minor Surgery,PRC DELEGATED CO-COMMISSIONING,WOODSEATS MEDICAL CENTRE,24670507,"4,250.00 "
Department of Health,NHS Sheffield CCG,30/11/2018,C&M-PMS PCO Other,PRC DELEGATED CO-COMMISSIONING,WOODSEATS MEDICAL CENTRE,24670507,661.44 
Department of Health,NHS Sheffield CCG,30/11/2018,C&M-PMS Prem Notional Rent,PRC DELEGATED CO-COMMISSIONING,WOODSEATS MEDICAL CENTRE,24670507,"11,666.67 "
Department of Health,NHS Sheffield CCG,30/11/2018,C&M-PMS Prem Rates,PRC DELEGATED CO-COMMISSIONING,WOODSEATS MEDICAL CENTRE,24670507,"3,032.00 "
Department of Health,NHS Sheffield CCG,30/11/2018,C&M-PMS QOF Aspiration,PRC DELEGATED CO-COMMISSIONING,WOODSEATS MEDICAL CENTRE,24670507,"7,979.47 "
Department of Health,NHS Sheffield CCG,30/11/2018,Hcare Srv Rec Fdtn Trust-Non Contract,NCAS/OATS,YORK TEACHING HOSPITAL NHS FOUNDATION TRUST,24551326,"37,990.28 "
Department of Health,NHS Sheffield CCG,30/11/2018,Hcare Srv Rec NHS Trust-CQUIN,AMBULANCE SERVICES,YORKSHIRE AMBULANCE SERVICE NHS TRUST,24551826,"34,499.00 "
Department of Health,NHS Sheffield CCG,30/11/2018,Hcare Srv Rec NHS Trust-Contract Baseline,AMBULANCE SERVICES,YORKSHIRE AMBULANCE SERVICE NHS TRUST,24551835,"124,103.00 "
Department of Health,NHS Sheffield CCG,30/11/2018,Hcare Srv Rec NHS Trust-Contract Baseline,PATIENT TRANSPORT,YORKSHIRE AMBULANCE SERVICE NHS TRUST,24551840,"245,019.60 "
Department of Health,NHS Sheffield CCG,30/11/2018,Hcare Srv Rec NHS Trust-Contract Baseline,NHS 111,YORKSHIRE AMBULANCE SERVICE NHS TRUST,24551848,"114,923.00 "
Department of Health,NHS Sheffield CCG,30/11/2018,Hcare Srv Rec NHS Trust-Contract Baseline,AMBULANCE SERVICES,YORKSHIRE AMBULANCE SERVICE NHS TRUST,24551851,"1,509,029.00 "
